{"text_format":"1","workbook":"xlsx","n_sheets":6,"sheets":["はじめに","活動記録 ","会議録","金銭出納簿（今年度）","金銭出納簿（前年度）","【選択肢】"],"not_rendered":{"charts":0,"images":2,"macros":0,"external_links":0,"defined_names":63,"comments":2,"pivot_tables":0},"unopened":[],"bounds":{"document_bytes":16777216,"sheet_cells":100000,"rows_first":2000,"rows_last":500,"rows_between":2000,"halvings":0,"cell_chars":16384,"cell_head_chars":4096},"cells_cut":0,"cells_raw":0,"read":"whole","date_system":"1900"}

{"sheet":"はじめに","index":0,"n_rows":26,"n_cols":7,"rows_kept":26,"cut":false,"hidden":false,"merged":[[16,158,16,160],[16,161,16,163],[16,164,16,166],[16,200,16,202],[16,203,16,205],[16,206,16,208],[16,209,16,211],[16,212,16,214],[16,134,16,136],[16,137,16,139],[16,140,16,142],[16,143,16,145],[16,146,16,148],[16,149,16,151],[16,152,16,154],[16,155,16,157],[19,62,19,64],[19,119,19,121],[19,122,19,124],[19,125,19,127],[19,128,19,130],[19,146,19,148],[19,212,19,214],[19,179,19,181],[19,182,19,184],[19,188,19,190],[19,98,19,100],[19,101,19,103],[19,104,19,106],[19,107,19,109],[19,110,19,112],[19,113,19,115],[19,116,19,118],[19,155,19,157],[19,215,19,217],[19,149,19,151],[19,152,19,154],[19,140,19,142],[19,143,19,145],[19,65,19,67],[19,68,19,70],[19,71,19,73],[19,245,19,247],[19,74,19,76],[19,77,19,79],[19,80,19,82],[19,83,19,85],[19,86,19,88],[19,89,19,91],[19,92,19,94],[19,95,19,97],[19,131,19,133],[19,134,19,136],[19,137,19,139],[19,185,19,187],[19,206,19,208],[19,209,19,211],[19,176,19,178],[19,251,19,253],[19,254,19,256],[19,257,19,257],[19,227,19,229],[19,230,19,232],[19,233,19,235],[19,236,19,238],[19,239,19,241],[19,158,19,160],[19,161,19,163],[19,164,19,166],[19,167,19,169],[19,170,19,172],[19,242,19,244],[19,218,19,220],[19,221,19,223],[19,224,19,226],[19,191,19,193],[19,194,19,196],[19,197,19,199],[19,200,19,202],[19,203,19,205],[19,248,19,250],[19,173,19,175],[16,110,16,112],[16,113,16,115],[16,116,16,118],[16,119,16,121],[16,122,16,124],[16,125,16,127],[16,128,16,130],[16,131,16,133],[16,101,16,103],[16,104,16,106],[16,107,16,109],[16,254,16,256],[16,167,16,169],[16,170,16,172],[16,173,16,175],[16,176,16,178],[16,179,16,181],[16,182,16,184],[16,185,16,187],[16,188,16,190],[16,191,16,193],[16,248,16,250],[16,251,16,253],[16,218,16,220],[16,221,16,223],[16,224,16,226],[16,227,16,229],[16,230,16,232],[16,233,16,235],[16,242,16,244],[16,245,16,247],[16,215,16,217],[16,257,16,257],[16,236,16,238],[16,239,16,241],[16,9,16,10],[16,11,16,13],[16,14,16,16],[16,17,16,19],[16,20,16,22],[16,23,16,25],[16,26,16,28],[16,29,16,31],[16,32,16,34],[16,35,16,37],[16,38,16,40],[16,41,16,43],[16,44,16,46],[16,47,16,49],[16,50,16,52],[16,53,16,55],[16,56,16,58],[16,59,16,61],[16,62,16,64],[16,194,16,196],[16,197,16,199],[14,185,14,187],[14,188,14,190],[14,191,14,193],[14,104,14,106],[14,107,14,109],[14,110,14,112],[14,113,14,115],[14,116,14,118],[14,119,14,121],[14,122,14,124],[14,125,14,127],[14,128,14,130],[14,131,14,133],[14,134,14,136],[14,137,14,139],[14,140,14,142],[14,143,14,145],[14,146,14,148],[14,179,14,181],[14,182,14,184],[14,155,14,157],[14,149,14,151],[14,152,14,154],[14,176,14,178],[14,32,14,34],[14,56,14,58],[14,233,14,235],[14,236,14,238],[14,257,14,257],[14,239,14,241],[14,242,14,244],[14,245,14,247],[14,248,14,250],[14,251,14,253],[14,254,14,256],[14,221,14,223],[14,224,14,226],[14,227,14,229],[14,230,14,232],[14,194,14,196],[14,197,14,199],[14,200,14,202],[14,203,14,205],[14,206,14,208],[14,209,14,211],[14,212,14,214],[14,215,14,217],[14,218,14,220],[14,167,14,169],[14,170,14,172],[14,173,14,175],[14,77,14,79],[14,80,14,82],[14,89,14,91],[14,92,14,94],[14,95,14,97],[14,158,14,160],[14,161,14,163],[14,164,14,166],[14,98,14,100],[14,101,14,103],[16,89,16,91],[16,92,16,94],[16,95,16,97],[16,98,16,100],[14,74,14,76],[14,62,14,64],[14,65,14,67],[14,59,14,61],[16,80,16,82],[14,83,14,85],[14,86,14,88],[16,65,16,67],[16,68,16,70],[16,71,16,73],[16,74,16,76],[16,77,16,79],[14,68,14,70],[14,71,14,73],[16,83,16,85],[16,86,16,88],[19,59,19,61],[14,17,14,19],[14,20,14,22],[14,23,14,25],[14,26,14,28],[19,32,19,34],[19,35,19,37],[19,20,19,22],[19,23,19,25],[19,26,19,28],[19,38,19,40],[19,41,19,43],[19,44,19,46],[19,47,19,49],[19,50,19,52],[19,53,19,55],[19,56,19,58],[14,35,14,37],[14,38,14,40],[14,41,14,43],[14,44,14,46],[14,47,14,49],[14,50,14,52],[14,53,14,55],[14,14,14,16],[13,1,13,6],[19,11,19,13],[19,14,19,16],[19,17,19,19],[19,29,19,31],[21,1,21,2],[21,3,21,4],[2,4,2,6],[3,4,3,6],[17,1,17,6],[4,3,4,6],[6,3,6,6],[10,1,10,6],[9,1,9,6],[16,1,16,6],[15,1,15,6],[12,1,12,6],[14,1,14,6],[19,9,19,10],[14,29,14,31],[8,10,8,12],[23,1,23,2],[23,3,23,4],[24,3,25,4],[24,1,25,2],[24,5,25,5],[22,1,22,2],[22,3,22,4],[14,9,14,10],[14,11,14,13]]}
["中山間地域等直接支払交付金参考様式集（第6期対策）"]
["★基本情報入力欄　はじめに太枠内の情報を入力してください。"]
[null,"都道府県名",null,"新潟県","　←　「都道府県」まで記入してください。"]
[null,"市町村名",null,"上越市","　←　「市町村」まで記入してください。"]
[null,"協定名"]
[null,"代表者名"]
[null,"協定所在地"]
[]
["★記入の手順と注意事項"]
[null,"・「★提出書類と各シートの説明」のシート名をクリックすることで、入力する様式に移動します。または、画面下の様式名を選択すると、入力する様式を切り替えることができます。左下の◀▶をクリックすることで、隠れている様式を表示させることができます。"]
[null,"（※まず初めに、「別紙２①」の「農用地の内訳等及びネットワーク化活動計画」を入力すると作成がスムーズです。）"]
[]
[null,"・すべての集落協定の方が入力する必要のあるセルには、この色が塗ってあります。"]
[null,"・該当する場合に、集落協定の方が入力する必要のあるセルには、この色が塗ってあります。"]
[null,"・この色（黄緑色）が塗ってあるセルは自動入力されます。自動入力されたものが間違っている場合は、正しく修正してください。（入力されている数式を消去すると、自由に入力できます。）"]
[null,"・市町村に提出する前に、自動集計された箇所も含め、誤りがないかご確認ください。"]
[null,"・行を追加する際は、一番左にある行番号をクリックして行全体をコピーし、表の最下部の太線より上の位置で行番号を右クリックし「コピーしたセルの挿入」を選択してください。"]
[null,"・画面上部に右のような表示が出た場合は「コンテンツの有効化」を押してください。"]
[]
["★各シートの説明"]
[]
[null,"様式番号",null,"様式名",null,"提出の必要性","シート名"]
[null,"　別紙１",null,"中山間地域等直接支払交付金収支報告書\n（「中山間地域等直接支払交付金に係る会計経理の明確化及び税務対応の円滑化について」に基づく様式）",null,"必須\n（集落協定）","収支報告書（金銭出納簿連動）"]
[null,"ー",null,"中山間地域等直接支払交付金　活動記録",null,"必要に応じて","活動記録（参考）"]
[null,"ー",null,"中山間地域等直接支払交付金　金銭出納簿",null,"必要に応じて","金銭出納簿（今年度）（参考）"]
[null,null,null,null,null,null,"金銭出納簿（前年度）（参考）"]

{"sheet":"活動記録 ","index":1,"n_rows":27,"n_cols":15,"rows_kept":27,"cut":false,"hidden":false,"merged":[[62,1,64,1],[62,2,64,2],[62,13,64,13],[62,14,64,14],[65,1,67,1],[65,2,67,2],[65,13,67,13],[65,14,67,14],[56,1,58,1],[56,2,58,2],[56,13,58,13],[56,14,58,14],[59,1,61,1],[59,2,61,2],[59,13,61,13],[59,14,61,14],[50,1,52,1],[50,2,52,2],[50,13,52,13],[50,14,52,14],[53,1,55,1],[53,2,55,2],[53,13,55,13],[53,14,55,14],[44,1,46,1],[44,2,46,2],[44,13,46,13],[44,14,46,14],[47,1,49,1],[47,2,49,2],[47,13,49,13],[47,14,49,14],[38,1,40,1],[38,2,40,2],[38,13,40,13],[38,14,40,14],[41,1,43,1],[41,2,43,2],[41,13,43,13],[41,14,43,14],[32,1,34,1],[32,2,34,2],[32,13,34,13],[32,14,34,14],[35,1,37,1],[35,2,37,2],[35,13,37,13],[35,14,37,14],[29,1,31,1],[29,2,31,2],[29,13,31,13],[29,14,31,14],[6,15,8,21],[7,1,8,1],[7,3,8,3],[7,4,8,4],[7,5,8,5],[7,12,8,12],[7,13,8,13],[7,2,8,2],[5,1,5,14],[6,1,6,2],[6,3,6,5],[6,6,8,11],[6,12,6,13],[6,14,8,14]]}
[]
[null,null,null,null,null,null,null,null,null,null,null,null,null,"協定名：",{"$f":"はじめに!D5&\"\"","v":""}]
[null,null,null,null,null,"令和7年度","　中山間地域等直接支払交付金　活動記録"]
[null,null,null,null,null,null,null,"（多面的機能支払交付金との共通様式）"]
[null,"★「実施時間」には休憩時間を含めず、実働時間を記入してください。"]
[null,"\n★中山間地域等直接支払交付金の活動の場合、「活動項目番号」欄には、シート【選択肢】のQ列67番以降から選択。\n★多面的機能支払交付金の活動の場合、「活動項目番号」欄には、実施要領別記1-2の国が定める活動指針における活動項目の番号及び要領第1の２の(1)に基づき\n　都道府県が定める要綱基本方針において追加された活動項目の番号を記入します。その他、事務処理は200番、会議等は300番を記入します。\n　同一日に複数の活動を行った場合は、該当する全ての活動項目番号を左詰めで一行に記入してください。番号欄が足りない場合は、複数行に分けて記入してください。\n　　"]
[null,"活動実施日及び活動時間",null,"活動参加人数",null,null,"活動項目番号（左詰め）\n（中山間地域等直接支払交付金の活動の場合\nシート【選択肢】のQ列67番以降から選択）",null,null,null,null,null,"活動内容",null,"備考（具体的な活動内容を記入）"]
[null,"日付","活動時間","農業者","農業者\n以外","総参加\n人数",null,null,null,null,null,null,"支払区分","活動項目"]
[]
[null,null,null,null,null,{"$f":"SUM(D10+E10)","v":0},null,null,null,null,null,null,{"$f":"IF(G10=\"\",\"\",(IFERROR(VLOOKUP($G10,【選択肢】!$Q$3:$S$118,2,),\" \")&IF(H10=\"\",\"\",\",\"&IFERROR(VLOOKUP($H10,【選択肢】!$Q$3:$S$118,2,),\" \")&IF(I10=\"\",\"\",\",\"&IFERROR(VLOOKUP($I10,【選択肢】!$Q$3:$S$118,2,),\" \")&IF(J10=\"\",\"\",\",\"&IFERROR(VLOOKUP($J10,【選択肢】!$Q$3:$S$118,2,),\" \")&IF(K10=\"\",\"\",\",\"&IFERROR(VLOOKUP($K10,【選択肢】!$Q$3:$S$118,2,),\" \")&IF(L10=\"\",\"\",\",\"&IFERROR(VLOOKUP($L10,【選択肢】!$Q$3:$S$118,2,),\" \"))))))))","v":""},{"$f":"IF(G10=\"\",\"\",(IFERROR(VLOOKUP($G10,【選択肢】!$Q$3:$S$118,3,),\" \")&IF(H10=\"\",\"\",\",\"&IFERROR(VLOOKUP($H10,【選択肢】!$Q$3:$S$118,3,),\" \")&IF(I10=\"\",\"\",\",\"&IFERROR(VLOOKUP($I10,【選択肢】!$Q$3:$S$118,3,),\" \")&IF(J10=\"\",\"\",\",\"&IFERROR(VLOOKUP($J10,【選択肢】!$Q$3:$S$118,3,),\" \")&IF(K10=\"\",\"\",\",\"&IFERROR(VLOOKUP($K10,【選択肢】!$Q$3:$S$118,3,),\" \")&IF(L10=\"\",\"\",\",\"&IFERROR(VLOOKUP($L10,【選択肢】!$Q$3:$S$118,3,),\" \"))))))))","v":""}]
[null,null,null,null,null,{"$f":"SUM(D11+E11)","v":0},null,null,null,null,null,null,{"$f":"IF(G11=\"\",\"\",(IFERROR(VLOOKUP($G11,【選択肢】!$Q$3:$S$118,2,),\" \")&IF(H11=\"\",\"\",\",\"&IFERROR(VLOOKUP($H11,【選択肢】!$Q$3:$S$118,2,),\" \")&IF(I11=\"\",\"\",\",\"&IFERROR(VLOOKUP($I11,【選択肢】!$Q$3:$S$118,2,),\" \")&IF(J11=\"\",\"\",\",\"&IFERROR(VLOOKUP($J11,【選択肢】!$Q$3:$S$118,2,),\" \")&IF(K11=\"\",\"\",\",\"&IFERROR(VLOOKUP($K11,【選択肢】!$Q$3:$S$118,2,),\" \")&IF(L11=\"\",\"\",\",\"&IFERROR(VLOOKUP($L11,【選択肢】!$Q$3:$S$118,2,),\" \"))))))))","v":""},{"$f":"IF(G11=\"\",\"\",(IFERROR(VLOOKUP($G11,【選択肢】!$Q$3:$S$118,3,),\" \")&IF(H11=\"\",\"\",\",\"&IFERROR(VLOOKUP($H11,【選択肢】!$Q$3:$S$118,3,),\" \")&IF(I11=\"\",\"\",\",\"&IFERROR(VLOOKUP($I11,【選択肢】!$Q$3:$S$118,3,),\" \")&IF(J11=\"\",\"\",\",\"&IFERROR(VLOOKUP($J11,【選択肢】!$Q$3:$S$118,3,),\" \")&IF(K11=\"\",\"\",\",\"&IFERROR(VLOOKUP($K11,【選択肢】!$Q$3:$S$118,3,),\" \")&IF(L11=\"\",\"\",\",\"&IFERROR(VLOOKUP($L11,【選択肢】!$Q$3:$S$118,3,),\" \"))))))))","v":""}]
[null,null,null,null,null,{"$f":"SUM(D12+E12)","v":0},null,null,null,null,null,null,{"$f":"IF(G12=\"\",\"\",(IFERROR(VLOOKUP($G12,【選択肢】!$Q$3:$S$118,2,),\" \")&IF(H12=\"\",\"\",\",\"&IFERROR(VLOOKUP($H12,【選択肢】!$Q$3:$S$118,2,),\" \")&IF(I12=\"\",\"\",\",\"&IFERROR(VLOOKUP($I12,【選択肢】!$Q$3:$S$118,2,),\" \")&IF(J12=\"\",\"\",\",\"&IFERROR(VLOOKUP($J12,【選択肢】!$Q$3:$S$118,2,),\" \")&IF(K12=\"\",\"\",\",\"&IFERROR(VLOOKUP($K12,【選択肢】!$Q$3:$S$118,2,),\" \")&IF(L12=\"\",\"\",\",\"&IFERROR(VLOOKUP($L12,【選択肢】!$Q$3:$S$118,2,),\" \"))))))))","v":""},{"$f":"IF(G12=\"\",\"\",(IFERROR(VLOOKUP($G12,【選択肢】!$Q$3:$S$118,3,),\" \")&IF(H12=\"\",\"\",\",\"&IFERROR(VLOOKUP($H12,【選択肢】!$Q$3:$S$118,3,),\" \")&IF(I12=\"\",\"\",\",\"&IFERROR(VLOOKUP($I12,【選択肢】!$Q$3:$S$118,3,),\" \")&IF(J12=\"\",\"\",\",\"&IFERROR(VLOOKUP($J12,【選択肢】!$Q$3:$S$118,3,),\" \")&IF(K12=\"\",\"\",\",\"&IFERROR(VLOOKUP($K12,【選択肢】!$Q$3:$S$118,3,),\" \")&IF(L12=\"\",\"\",\",\"&IFERROR(VLOOKUP($L12,【選択肢】!$Q$3:$S$118,3,),\" \"))))))))","v":""}]
[null,null,null,null,null,{"$f":"SUM(D13+E13)","v":0},null,null,null,null,null,null,{"$f":"IF(G13=\"\",\"\",(IFERROR(VLOOKUP($G13,【選択肢】!$Q$3:$S$118,2,),\" \")&IF(H13=\"\",\"\",\",\"&IFERROR(VLOOKUP($H13,【選択肢】!$Q$3:$S$118,2,),\" \")&IF(I13=\"\",\"\",\",\"&IFERROR(VLOOKUP($I13,【選択肢】!$Q$3:$S$118,2,),\" \")&IF(J13=\"\",\"\",\",\"&IFERROR(VLOOKUP($J13,【選択肢】!$Q$3:$S$118,2,),\" \")&IF(K13=\"\",\"\",\",\"&IFERROR(VLOOKUP($K13,【選択肢】!$Q$3:$S$118,2,),\" \")&IF(L13=\"\",\"\",\",\"&IFERROR(VLOOKUP($L13,【選択肢】!$Q$3:$S$118,2,),\" \"))))))))","v":""},{"$f":"IF(G13=\"\",\"\",(IFERROR(VLOOKUP($G13,【選択肢】!$Q$3:$S$118,3,),\" \")&IF(H13=\"\",\"\",\",\"&IFERROR(VLOOKUP($H13,【選択肢】!$Q$3:$S$118,3,),\" \")&IF(I13=\"\",\"\",\",\"&IFERROR(VLOOKUP($I13,【選択肢】!$Q$3:$S$118,3,),\" \")&IF(J13=\"\",\"\",\",\"&IFERROR(VLOOKUP($J13,【選択肢】!$Q$3:$S$118,3,),\" \")&IF(K13=\"\",\"\",\",\"&IFERROR(VLOOKUP($K13,【選択肢】!$Q$3:$S$118,3,),\" \")&IF(L13=\"\",\"\",\",\"&IFERROR(VLOOKUP($L13,【選択肢】!$Q$3:$S$118,3,),\" \"))))))))","v":""}]
[null,null,null,null,null,{"$f":"SUM(D14+E14)","v":0},null,null,null,null,null,null,{"$f":"IF(G14=\"\",\"\",(IFERROR(VLOOKUP($G14,【選択肢】!$Q$3:$S$118,2,),\" \")&IF(H14=\"\",\"\",\",\"&IFERROR(VLOOKUP($H14,【選択肢】!$Q$3:$S$118,2,),\" \")&IF(I14=\"\",\"\",\",\"&IFERROR(VLOOKUP($I14,【選択肢】!$Q$3:$S$118,2,),\" \")&IF(J14=\"\",\"\",\",\"&IFERROR(VLOOKUP($J14,【選択肢】!$Q$3:$S$118,2,),\" \")&IF(K14=\"\",\"\",\",\"&IFERROR(VLOOKUP($K14,【選択肢】!$Q$3:$S$118,2,),\" \")&IF(L14=\"\",\"\",\",\"&IFERROR(VLOOKUP($L14,【選択肢】!$Q$3:$S$118,2,),\" \"))))))))","v":""},{"$f":"IF(G14=\"\",\"\",(IFERROR(VLOOKUP($G14,【選択肢】!$Q$3:$S$118,3,),\" \")&IF(H14=\"\",\"\",\",\"&IFERROR(VLOOKUP($H14,【選択肢】!$Q$3:$S$118,3,),\" \")&IF(I14=\"\",\"\",\",\"&IFERROR(VLOOKUP($I14,【選択肢】!$Q$3:$S$118,3,),\" \")&IF(J14=\"\",\"\",\",\"&IFERROR(VLOOKUP($J14,【選択肢】!$Q$3:$S$118,3,),\" \")&IF(K14=\"\",\"\",\",\"&IFERROR(VLOOKUP($K14,【選択肢】!$Q$3:$S$118,3,),\" \")&IF(L14=\"\",\"\",\",\"&IFERROR(VLOOKUP($L14,【選択肢】!$Q$3:$S$118,3,),\" \"))))))))","v":""}]
[null,null,null,null,null,0,null,null,null,null,null,null,{"$f":"IF(G15=\"\",\"\",(IFERROR(VLOOKUP($G15,【選択肢】!$Q$3:$S$118,2,),\" \")&IF(H15=\"\",\"\",\",\"&IFERROR(VLOOKUP($H15,【選択肢】!$Q$3:$S$118,2,),\" \")&IF(I15=\"\",\"\",\",\"&IFERROR(VLOOKUP($I15,【選択肢】!$Q$3:$S$118,2,),\" \")&IF(J15=\"\",\"\",\",\"&IFERROR(VLOOKUP($J15,【選択肢】!$Q$3:$S$118,2,),\" \")&IF(K15=\"\",\"\",\",\"&IFERROR(VLOOKUP($K15,【選択肢】!$Q$3:$S$118,2,),\" \")&IF(L15=\"\",\"\",\",\"&IFERROR(VLOOKUP($L15,【選択肢】!$Q$3:$S$118,2,),\" \"))))))))","v":""},{"$f":"IF(G15=\"\",\"\",(IFERROR(VLOOKUP($G15,【選択肢】!$Q$3:$S$118,3,),\" \")&IF(H15=\"\",\"\",\",\"&IFERROR(VLOOKUP($H15,【選択肢】!$Q$3:$S$118,3,),\" \")&IF(I15=\"\",\"\",\",\"&IFERROR(VLOOKUP($I15,【選択肢】!$Q$3:$S$118,3,),\" \")&IF(J15=\"\",\"\",\",\"&IFERROR(VLOOKUP($J15,【選択肢】!$Q$3:$S$118,3,),\" \")&IF(K15=\"\",\"\",\",\"&IFERROR(VLOOKUP($K15,【選択肢】!$Q$3:$S$118,3,),\" \")&IF(L15=\"\",\"\",\",\"&IFERROR(VLOOKUP($L15,【選択肢】!$Q$3:$S$118,3,),\" \"))))))))","v":""}]
[null,null,null,null,null,0,null,null,null,null,null,null,{"$f":"IF(G16=\"\",\"\",(IFERROR(VLOOKUP($G16,【選択肢】!$Q$3:$S$118,2,),\" \")&IF(H16=\"\",\"\",\",\"&IFERROR(VLOOKUP($H16,【選択肢】!$Q$3:$S$118,2,),\" \")&IF(I16=\"\",\"\",\",\"&IFERROR(VLOOKUP($I16,【選択肢】!$Q$3:$S$118,2,),\" \")&IF(J16=\"\",\"\",\",\"&IFERROR(VLOOKUP($J16,【選択肢】!$Q$3:$S$118,2,),\" \")&IF(K16=\"\",\"\",\",\"&IFERROR(VLOOKUP($K16,【選択肢】!$Q$3:$S$118,2,),\" \")&IF(L16=\"\",\"\",\",\"&IFERROR(VLOOKUP($L16,【選択肢】!$Q$3:$S$118,2,),\" \"))))))))","v":""},{"$f":"IF(G16=\"\",\"\",(IFERROR(VLOOKUP($G16,【選択肢】!$Q$3:$S$118,3,),\" \")&IF(H16=\"\",\"\",\",\"&IFERROR(VLOOKUP($H16,【選択肢】!$Q$3:$S$118,3,),\" \")&IF(I16=\"\",\"\",\",\"&IFERROR(VLOOKUP($I16,【選択肢】!$Q$3:$S$118,3,),\" \")&IF(J16=\"\",\"\",\",\"&IFERROR(VLOOKUP($J16,【選択肢】!$Q$3:$S$118,3,),\" \")&IF(K16=\"\",\"\",\",\"&IFERROR(VLOOKUP($K16,【選択肢】!$Q$3:$S$118,3,),\" \")&IF(L16=\"\",\"\",\",\"&IFERROR(VLOOKUP($L16,【選択肢】!$Q$3:$S$118,3,),\" \"))))))))","v":""}]
[null,null,null,null,null,0,null,null,null,null,null,null,{"$f":"IF(G17=\"\",\"\",(IFERROR(VLOOKUP($G17,【選択肢】!$Q$3:$S$118,2,),\" \")&IF(H17=\"\",\"\",\",\"&IFERROR(VLOOKUP($H17,【選択肢】!$Q$3:$S$118,2,),\" \")&IF(I17=\"\",\"\",\",\"&IFERROR(VLOOKUP($I17,【選択肢】!$Q$3:$S$118,2,),\" \")&IF(J17=\"\",\"\",\",\"&IFERROR(VLOOKUP($J17,【選択肢】!$Q$3:$S$118,2,),\" \")&IF(K17=\"\",\"\",\",\"&IFERROR(VLOOKUP($K17,【選択肢】!$Q$3:$S$118,2,),\" \")&IF(L17=\"\",\"\",\",\"&IFERROR(VLOOKUP($L17,【選択肢】!$Q$3:$S$118,2,),\" \"))))))))","v":""},{"$f":"IF(G17=\"\",\"\",(IFERROR(VLOOKUP($G17,【選択肢】!$Q$3:$S$118,3,),\" \")&IF(H17=\"\",\"\",\",\"&IFERROR(VLOOKUP($H17,【選択肢】!$Q$3:$S$118,3,),\" \")&IF(I17=\"\",\"\",\",\"&IFERROR(VLOOKUP($I17,【選択肢】!$Q$3:$S$118,3,),\" \")&IF(J17=\"\",\"\",\",\"&IFERROR(VLOOKUP($J17,【選択肢】!$Q$3:$S$118,3,),\" \")&IF(K17=\"\",\"\",\",\"&IFERROR(VLOOKUP($K17,【選択肢】!$Q$3:$S$118,3,),\" \")&IF(L17=\"\",\"\",\",\"&IFERROR(VLOOKUP($L17,【選択肢】!$Q$3:$S$118,3,),\" \"))))))))","v":""}]
[null,null,null,null,null,0,null,null,null,null,null,null,{"$f":"IF(G18=\"\",\"\",(IFERROR(VLOOKUP($G18,【選択肢】!$Q$3:$S$118,2,),\" \")&IF(H18=\"\",\"\",\",\"&IFERROR(VLOOKUP($H18,【選択肢】!$Q$3:$S$118,2,),\" \")&IF(I18=\"\",\"\",\",\"&IFERROR(VLOOKUP($I18,【選択肢】!$Q$3:$S$118,2,),\" \")&IF(J18=\"\",\"\",\",\"&IFERROR(VLOOKUP($J18,【選択肢】!$Q$3:$S$118,2,),\" \")&IF(K18=\"\",\"\",\",\"&IFERROR(VLOOKUP($K18,【選択肢】!$Q$3:$S$118,2,),\" \")&IF(L18=\"\",\"\",\",\"&IFERROR(VLOOKUP($L18,【選択肢】!$Q$3:$S$118,2,),\" \"))))))))","v":""},{"$f":"IF(G18=\"\",\"\",(IFERROR(VLOOKUP($G18,【選択肢】!$Q$3:$S$118,3,),\" \")&IF(H18=\"\",\"\",\",\"&IFERROR(VLOOKUP($H18,【選択肢】!$Q$3:$S$118,3,),\" \")&IF(I18=\"\",\"\",\",\"&IFERROR(VLOOKUP($I18,【選択肢】!$Q$3:$S$118,3,),\" \")&IF(J18=\"\",\"\",\",\"&IFERROR(VLOOKUP($J18,【選択肢】!$Q$3:$S$118,3,),\" \")&IF(K18=\"\",\"\",\",\"&IFERROR(VLOOKUP($K18,【選択肢】!$Q$3:$S$118,3,),\" \")&IF(L18=\"\",\"\",\",\"&IFERROR(VLOOKUP($L18,【選択肢】!$Q$3:$S$118,3,),\" \"))))))))","v":""}]
[null,null,null,null,null,{"$f":"SUM(D19+E19)","v":0},null,null,null,null,null,null,{"$f":"IF(G19=\"\",\"\",(IFERROR(VLOOKUP($G19,【選択肢】!$Q$3:$S$118,2,),\" \")&IF(H19=\"\",\"\",\",\"&IFERROR(VLOOKUP($H19,【選択肢】!$Q$3:$S$118,2,),\" \")&IF(I19=\"\",\"\",\",\"&IFERROR(VLOOKUP($I19,【選択肢】!$Q$3:$S$118,2,),\" \")&IF(J19=\"\",\"\",\",\"&IFERROR(VLOOKUP($J19,【選択肢】!$Q$3:$S$118,2,),\" \")&IF(K19=\"\",\"\",\",\"&IFERROR(VLOOKUP($K19,【選択肢】!$Q$3:$S$118,2,),\" \")&IF(L19=\"\",\"\",\",\"&IFERROR(VLOOKUP($L19,【選択肢】!$Q$3:$S$118,2,),\" \"))))))))","v":""},{"$f":"IF(G19=\"\",\"\",(IFERROR(VLOOKUP($G19,【選択肢】!$Q$3:$S$118,3,),\" \")&IF(H19=\"\",\"\",\",\"&IFERROR(VLOOKUP($H19,【選択肢】!$Q$3:$S$118,3,),\" \")&IF(I19=\"\",\"\",\",\"&IFERROR(VLOOKUP($I19,【選択肢】!$Q$3:$S$118,3,),\" \")&IF(J19=\"\",\"\",\",\"&IFERROR(VLOOKUP($J19,【選択肢】!$Q$3:$S$118,3,),\" \")&IF(K19=\"\",\"\",\",\"&IFERROR(VLOOKUP($K19,【選択肢】!$Q$3:$S$118,3,),\" \")&IF(L19=\"\",\"\",\",\"&IFERROR(VLOOKUP($L19,【選択肢】!$Q$3:$S$118,3,),\" \"))))))))","v":""}]
[null,null,null,null,null,0,null,null,null,null,null,null,{"$f":"IF(G20=\"\",\"\",(IFERROR(VLOOKUP($G20,【選択肢】!$Q$3:$S$118,2,),\" \")&IF(H20=\"\",\"\",\",\"&IFERROR(VLOOKUP($H20,【選択肢】!$Q$3:$S$118,2,),\" \")&IF(I20=\"\",\"\",\",\"&IFERROR(VLOOKUP($I20,【選択肢】!$Q$3:$S$118,2,),\" \")&IF(J20=\"\",\"\",\",\"&IFERROR(VLOOKUP($J20,【選択肢】!$Q$3:$S$118,2,),\" \")&IF(K20=\"\",\"\",\",\"&IFERROR(VLOOKUP($K20,【選択肢】!$Q$3:$S$118,2,),\" \")&IF(L20=\"\",\"\",\",\"&IFERROR(VLOOKUP($L20,【選択肢】!$Q$3:$S$118,2,),\" \"))))))))","v":""},{"$f":"IF(G20=\"\",\"\",(IFERROR(VLOOKUP($G20,【選択肢】!$Q$3:$S$118,3,),\" \")&IF(H20=\"\",\"\",\",\"&IFERROR(VLOOKUP($H20,【選択肢】!$Q$3:$S$118,3,),\" \")&IF(I20=\"\",\"\",\",\"&IFERROR(VLOOKUP($I20,【選択肢】!$Q$3:$S$118,3,),\" \")&IF(J20=\"\",\"\",\",\"&IFERROR(VLOOKUP($J20,【選択肢】!$Q$3:$S$118,3,),\" \")&IF(K20=\"\",\"\",\",\"&IFERROR(VLOOKUP($K20,【選択肢】!$Q$3:$S$118,3,),\" \")&IF(L20=\"\",\"\",\",\"&IFERROR(VLOOKUP($L20,【選択肢】!$Q$3:$S$118,3,),\" \"))))))))","v":""}]
[null,null,null,null,null,0,null,null,null,null,null,null,{"$f":"IF(G21=\"\",\"\",(IFERROR(VLOOKUP($G21,【選択肢】!$Q$3:$S$118,2,),\" \")&IF(H21=\"\",\"\",\",\"&IFERROR(VLOOKUP($H21,【選択肢】!$Q$3:$S$118,2,),\" \")&IF(I21=\"\",\"\",\",\"&IFERROR(VLOOKUP($I21,【選択肢】!$Q$3:$S$118,2,),\" \")&IF(J21=\"\",\"\",\",\"&IFERROR(VLOOKUP($J21,【選択肢】!$Q$3:$S$118,2,),\" \")&IF(K21=\"\",\"\",\",\"&IFERROR(VLOOKUP($K21,【選択肢】!$Q$3:$S$118,2,),\" \")&IF(L21=\"\",\"\",\",\"&IFERROR(VLOOKUP($L21,【選択肢】!$Q$3:$S$118,2,),\" \"))))))))","v":""},{"$f":"IF(G21=\"\",\"\",(IFERROR(VLOOKUP($G21,【選択肢】!$Q$3:$S$118,3,),\" \")&IF(H21=\"\",\"\",\",\"&IFERROR(VLOOKUP($H21,【選択肢】!$Q$3:$S$118,3,),\" \")&IF(I21=\"\",\"\",\",\"&IFERROR(VLOOKUP($I21,【選択肢】!$Q$3:$S$118,3,),\" \")&IF(J21=\"\",\"\",\",\"&IFERROR(VLOOKUP($J21,【選択肢】!$Q$3:$S$118,3,),\" \")&IF(K21=\"\",\"\",\",\"&IFERROR(VLOOKUP($K21,【選択肢】!$Q$3:$S$118,3,),\" \")&IF(L21=\"\",\"\",\",\"&IFERROR(VLOOKUP($L21,【選択肢】!$Q$3:$S$118,3,),\" \"))))))))","v":""}]
[null,null,null,null,null,0,null,null,null,null,null,null,{"$f":"IF(G22=\"\",\"\",(IFERROR(VLOOKUP($G22,【選択肢】!$Q$3:$S$118,2,),\" \")&IF(H22=\"\",\"\",\",\"&IFERROR(VLOOKUP($H22,【選択肢】!$Q$3:$S$118,2,),\" \")&IF(I22=\"\",\"\",\",\"&IFERROR(VLOOKUP($I22,【選択肢】!$Q$3:$S$118,2,),\" \")&IF(J22=\"\",\"\",\",\"&IFERROR(VLOOKUP($J22,【選択肢】!$Q$3:$S$118,2,),\" \")&IF(K22=\"\",\"\",\",\"&IFERROR(VLOOKUP($K22,【選択肢】!$Q$3:$S$118,2,),\" \")&IF(L22=\"\",\"\",\",\"&IFERROR(VLOOKUP($L22,【選択肢】!$Q$3:$S$118,2,),\" \"))))))))","v":""},{"$f":"IF(G22=\"\",\"\",(IFERROR(VLOOKUP($G22,【選択肢】!$Q$3:$S$118,3,),\" \")&IF(H22=\"\",\"\",\",\"&IFERROR(VLOOKUP($H22,【選択肢】!$Q$3:$S$118,3,),\" \")&IF(I22=\"\",\"\",\",\"&IFERROR(VLOOKUP($I22,【選択肢】!$Q$3:$S$118,3,),\" \")&IF(J22=\"\",\"\",\",\"&IFERROR(VLOOKUP($J22,【選択肢】!$Q$3:$S$118,3,),\" \")&IF(K22=\"\",\"\",\",\"&IFERROR(VLOOKUP($K22,【選択肢】!$Q$3:$S$118,3,),\" \")&IF(L22=\"\",\"\",\",\"&IFERROR(VLOOKUP($L22,【選択肢】!$Q$3:$S$118,3,),\" \"))))))))","v":""}]
[null,null,null,null,null,0,null,null,null,null,null,null,{"$f":"IF(G23=\"\",\"\",(IFERROR(VLOOKUP($G23,【選択肢】!$Q$3:$S$118,2,),\" \")&IF(H23=\"\",\"\",\",\"&IFERROR(VLOOKUP($H23,【選択肢】!$Q$3:$S$118,2,),\" \")&IF(I23=\"\",\"\",\",\"&IFERROR(VLOOKUP($I23,【選択肢】!$Q$3:$S$118,2,),\" \")&IF(J23=\"\",\"\",\",\"&IFERROR(VLOOKUP($J23,【選択肢】!$Q$3:$S$118,2,),\" \")&IF(K23=\"\",\"\",\",\"&IFERROR(VLOOKUP($K23,【選択肢】!$Q$3:$S$118,2,),\" \")&IF(L23=\"\",\"\",\",\"&IFERROR(VLOOKUP($L23,【選択肢】!$Q$3:$S$118,2,),\" \"))))))))","v":""},{"$f":"IF(G23=\"\",\"\",(IFERROR(VLOOKUP($G23,【選択肢】!$Q$3:$S$118,3,),\" \")&IF(H23=\"\",\"\",\",\"&IFERROR(VLOOKUP($H23,【選択肢】!$Q$3:$S$118,3,),\" \")&IF(I23=\"\",\"\",\",\"&IFERROR(VLOOKUP($I23,【選択肢】!$Q$3:$S$118,3,),\" \")&IF(J23=\"\",\"\",\",\"&IFERROR(VLOOKUP($J23,【選択肢】!$Q$3:$S$118,3,),\" \")&IF(K23=\"\",\"\",\",\"&IFERROR(VLOOKUP($K23,【選択肢】!$Q$3:$S$118,3,),\" \")&IF(L23=\"\",\"\",\",\"&IFERROR(VLOOKUP($L23,【選択肢】!$Q$3:$S$118,3,),\" \"))))))))","v":""}]
[null,null,null,null,null,{"$f":"SUM(D24+E24)","v":0},null,null,null,null,null,null,{"$f":"IF(G24=\"\",\"\",(IFERROR(VLOOKUP($G24,【選択肢】!$Q$3:$S$118,2,),\" \")&IF(H24=\"\",\"\",\",\"&IFERROR(VLOOKUP($H24,【選択肢】!$Q$3:$S$118,2,),\" \")&IF(I24=\"\",\"\",\",\"&IFERROR(VLOOKUP($I24,【選択肢】!$Q$3:$S$118,2,),\" \")&IF(J24=\"\",\"\",\",\"&IFERROR(VLOOKUP($J24,【選択肢】!$Q$3:$S$118,2,),\" \")&IF(K24=\"\",\"\",\",\"&IFERROR(VLOOKUP($K24,【選択肢】!$Q$3:$S$118,2,),\" \")&IF(L24=\"\",\"\",\",\"&IFERROR(VLOOKUP($L24,【選択肢】!$Q$3:$S$118,2,),\" \"))))))))","v":""},{"$f":"IF(G24=\"\",\"\",(IFERROR(VLOOKUP($G24,【選択肢】!$Q$3:$S$118,3,),\" \")&IF(H24=\"\",\"\",\",\"&IFERROR(VLOOKUP($H24,【選択肢】!$Q$3:$S$118,3,),\" \")&IF(I24=\"\",\"\",\",\"&IFERROR(VLOOKUP($I24,【選択肢】!$Q$3:$S$118,3,),\" \")&IF(J24=\"\",\"\",\",\"&IFERROR(VLOOKUP($J24,【選択肢】!$Q$3:$S$118,3,),\" \")&IF(K24=\"\",\"\",\",\"&IFERROR(VLOOKUP($K24,【選択肢】!$Q$3:$S$118,3,),\" \")&IF(L24=\"\",\"\",\",\"&IFERROR(VLOOKUP($L24,【選択肢】!$Q$3:$S$118,3,),\" \"))))))))","v":""}]
[null,null,null,null,null,{"$f":"SUM(D25+E25)","v":0},null,null,null,null,null,null,{"$f":"IF(G25=\"\",\"\",(IFERROR(VLOOKUP($G25,【選択肢】!$Q$3:$S$118,2,),\" \")&IF(H25=\"\",\"\",\",\"&IFERROR(VLOOKUP($H25,【選択肢】!$Q$3:$S$118,2,),\" \")&IF(I25=\"\",\"\",\",\"&IFERROR(VLOOKUP($I25,【選択肢】!$Q$3:$S$118,2,),\" \")&IF(J25=\"\",\"\",\",\"&IFERROR(VLOOKUP($J25,【選択肢】!$Q$3:$S$118,2,),\" \")&IF(K25=\"\",\"\",\",\"&IFERROR(VLOOKUP($K25,【選択肢】!$Q$3:$S$118,2,),\" \")&IF(L25=\"\",\"\",\",\"&IFERROR(VLOOKUP($L25,【選択肢】!$Q$3:$S$118,2,),\" \"))))))))","v":""},{"$f":"IF(G25=\"\",\"\",(IFERROR(VLOOKUP($G25,【選択肢】!$Q$3:$S$118,3,),\" \")&IF(H25=\"\",\"\",\",\"&IFERROR(VLOOKUP($H25,【選択肢】!$Q$3:$S$118,3,),\" \")&IF(I25=\"\",\"\",\",\"&IFERROR(VLOOKUP($I25,【選択肢】!$Q$3:$S$118,3,),\" \")&IF(J25=\"\",\"\",\",\"&IFERROR(VLOOKUP($J25,【選択肢】!$Q$3:$S$118,3,),\" \")&IF(K25=\"\",\"\",\",\"&IFERROR(VLOOKUP($K25,【選択肢】!$Q$3:$S$118,3,),\" \")&IF(L25=\"\",\"\",\",\"&IFERROR(VLOOKUP($L25,【選択肢】!$Q$3:$S$118,3,),\" \"))))))))","v":""}]
[null,null,null,null,null,null,null,null,null,null,null,null,{"$f":"IF(G26=\"\",\"\",(IFERROR(VLOOKUP($G26,【選択肢】!$Q$3:$S$118,2,),\" \")&IF(H26=\"\",\"\",\",\"&IFERROR(VLOOKUP($H26,【選択肢】!$Q$3:$S$118,2,),\" \")&IF(I26=\"\",\"\",\",\"&IFERROR(VLOOKUP($I26,【選択肢】!$Q$3:$S$118,2,),\" \")&IF(J26=\"\",\"\",\",\"&IFERROR(VLOOKUP($J26,【選択肢】!$Q$3:$S$118,2,),\" \")&IF(K26=\"\",\"\",\",\"&IFERROR(VLOOKUP($K26,【選択肢】!$Q$3:$S$118,2,),\" \")&IF(L26=\"\",\"\",\",\"&IFERROR(VLOOKUP($L26,【選択肢】!$Q$3:$S$118,2,),\" \"))))))))","v":""},{"$f":"IF(G26=\"\",\"\",(IFERROR(VLOOKUP($G26,【選択肢】!$Q$3:$S$118,3,),\" \")&IF(H26=\"\",\"\",\",\"&IFERROR(VLOOKUP($H26,【選択肢】!$Q$3:$S$118,3,),\" \")&IF(I26=\"\",\"\",\",\"&IFERROR(VLOOKUP($I26,【選択肢】!$Q$3:$S$118,3,),\" \")&IF(J26=\"\",\"\",\",\"&IFERROR(VLOOKUP($J26,【選択肢】!$Q$3:$S$118,3,),\" \")&IF(K26=\"\",\"\",\",\"&IFERROR(VLOOKUP($K26,【選択肢】!$Q$3:$S$118,3,),\" \")&IF(L26=\"\",\"\",\",\"&IFERROR(VLOOKUP($L26,【選択肢】!$Q$3:$S$118,3,),\" \"))))))))","v":""}]
[null,null,null,null,null,"行を追加する場合はこれより上の行のコピーして、「コピーしたセルの挿入」をしてください。",null,null,null,null,null,null,null,{"$f":"IF(G27=\"\",\"\",(IFERROR(VLOOKUP($G27,【選択肢】!$Q$3:$S$114,3,),\" \")&IF(H27=\"\",\"\",\",\"&IFERROR(VLOOKUP($H27,【選択肢】!$Q$3:$S$114,3,),\" \")&IF(I27=\"\",\"\",\",\"&IFERROR(VLOOKUP($I27,【選択肢】!$Q$3:$S$114,3,),\" \")&IF(J27=\"\",\"\",\",\"&IFERROR(VLOOKUP($J27,【選択肢】!$Q$3:$S$114,3,),\" \")&IF(K27=\"\",\"\",\",\"&IFERROR(VLOOKUP($K27,【選択肢】!$Q$3:$S$114,3,),\" \")&IF(L27=\"\",\"\",\",\"&IFERROR(VLOOKUP($L27,【選択肢】!$Q$3:$S$114,3,),\" \"))))))))","v":""}]

{"sheet":"会議録","index":2,"n_rows":30,"n_cols":15,"rows_kept":30,"cut":false,"hidden":false,"merged":[[1,1,1,5],[13,3,13,4],[14,3,14,4]]}
[]
["令和7年度","　中山間地域等直接支払交付金　会議録",null,null,null,null,null,"会議出席者一覧"]
[]
["会議名","日　付","時　間","場　所","参加者","内　容",null,"氏名＼会議日時",{"$f":"IF($B5<>\"\", $B5, \"\")","v":""},{"$f":"IF($B6<>\"\", $B6, \"\")","v":""},{"$f":"IF(B7<>\"\", B7, \"\")","v":""},{"$f":"IF(B8<>\"\", B8, \"\")","v":""},{"$f":"IF(B9<>\"\", B9, \"\")","v":""},{"$f":"IF(B10<>\"\", B10, \"\")","v":""},{"$f":"IF(B11<>\"\", B11, \"\")","v":""}]
[]
[]
[]
[]
[]
[]
[]
[]
["上記のとおり、会議を開催し、参加者の同意を得ました。"]
[null,null,"協定名：",{"$f":"はじめに!D5&\"\"","v":""}]
[null,null,"代　表：",{"$f":"はじめに!D6&\"\"","v":""},null,"㊞"]
[]
[]
["※↓会議名選択項目"]
["総会"]
["役員会"]
["ネットワーク化活動計画の話合い"]
[]
[]
[]
[]
[]
[]
[null,null,null,null,null,null,null,"計",{"$f":"IF(COUNTIF(I5:I27,\"○\")=0,\"\",COUNTIF(I5:I27,\"○\"))","v":""},{"$f":"IF(COUNTIF(J5:J27,\"○\")=0,\"\",COUNTIF(J5:J27,\"○\"))","v":""},"","","","",""]
[]
[null,null,null,null,null,null,null,"※出席した場合、○"]

{"sheet":"金銭出納簿（今年度）","index":3,"n_rows":104,"n_cols":13,"rows_kept":104,"cut":false,"hidden":false,"merged":[[103,1,103,2],[47,1,47,2],[48,1,48,2],[49,1,49,2],[50,1,50,2],[51,1,51,2],[52,1,52,10],[81,5,81,6],[82,5,82,6],[83,5,83,6],[84,5,84,6],[85,5,85,6],[86,5,86,6],[87,5,87,6],[88,5,88,6],[89,5,89,6],[103,5,103,6],[41,1,41,12],[95,5,95,6],[96,5,96,6],[97,5,97,6],[98,5,98,6],[99,5,99,6],[90,5,90,6],[91,5,91,6],[92,5,92,6],[93,5,93,6],[94,5,94,6],[53,6,53,10],[47,5,47,6],[48,5,48,9],[49,5,49,9],[2,7,2,9],[3,6,3,8],[100,5,100,6],[101,5,101,6],[102,5,102,6],[5,1,5,13],[6,1,6,13],[7,1,7,13],[50,5,50,9],[51,5,51,9],[53,1,53,2],[42,1,42,4],[79,1,81,2],[79,4,79,10],[80,7,80,8],[80,9,80,10]]}
[]
[]
[null,null,null,null,null,null,"令和7年度","中山間地域等直接支払交付金 金銭出納簿（当年度）"]
[null,null,null,null,null,null,"（多面的機能支払交付金との共通様式）",null,null,null,"組織名：",{"$f":"はじめに!D5","v":0}]
[null,"★「分類」欄は、分類番号（１～20）から選択してください。"]
[null,"★「区分」欄には、農地維持・資源向上（共同）に係る収支は「１」を、資源向上（長寿命化）に係る収支は「２」を必ず入力してください。\n　　区別ができない収支は「１」を記入してください。（中山間地域等直接支払交付金の場合は記入不要（多面的機能支払交付金の場合は記入））"]
[null,"★農地維持・資源向上（共同）の交付金を活用して資源向上（長寿命化）の活動を行った際の費用は、区分を「１」にし、「長寿命化への活用」欄に○を記入して\n　ください。（中山間地域等直接支払交付金の場合は記入不要（多面的機能支払交付金の場合は記入））"]
[null,"★交付金交付前に活動資金を構成員が一時的に立て替えて会計口座へ繰り入れた場合は、収入欄にその立替額を記入してください。\n　また、返済の際は返済額をマイナスの収入として収入欄に記入し、一時的な立替額が収入/支出の合計に計上されないようにしてください。"]
[null,"日　付","分類","月","内　　容","区分","収入（円）","支出（円）","残高（円）","伝票№","活動実施日","備考","長寿命化への活用"]
[null,null,null,{"$f":"MONTH(B10)","v":1},null,null,null,null,{"$f":"G10-H10","v":0}]
[null,null,null,{"$f":"MONTH(B11)","v":1},null,null,null,null,{"$f":"I10+$G11-$H11","v":0}]
[null,null,null,1,null,null,null,null,{"$f":"I11+$G12-$H12","v":0}]
[null,null,null,1,null,null,null,null,0]
[null,null,null,1,null,null,null,null,0]
[null,null,null,1,null,null,null,null,0]
[null,null,null,1,null,null,null,null,0]
[null,null,null,1,null,null,null,null,0]
[null,null,null,1,null,null,null,null,0]
[null,null,null,1,null,null,null,null,0]
[null,null,null,1,null,null,null,null,0]
[null,null,null,1,null,null,null,null,0]
[null,null,null,1,null,null,null,null,0]
[null,null,null,1,null,null,null,null,0]
[null,null,null,1,null,null,null,null,0]
[null,null,null,1,null,null,null,null,0]
[null,null,null,1,null,null,null,null,0]
[null,null,null,1,null,null,null,null,0]
[null,null,null,1,null,null,null,null,0]
[null,null,null,1,null,null,null,null,0]
[null,null,null,1,null,null,null,null,0]
[null,null,null,1,null,null,null,null,0]
[null,null,null,1,null,null,null,null,0]
[null,null,null,1,null,null,null,null,0]
[null,null,null,1,null,null,null,null,0]
[null,null,null,1,null,null,null,null,0]
[null,null,null,1,null,null,null,null,0]
[null,null,null,1,null,null,null,null,0]
[null,null,null,1,null,null,null,null,0]
[null,null,null,1,null,null,null,null,0]
[null,null,null,1,null,null,null,null,0]
[null,null,null,1,null,null,null,null,0]
[null,"行を追加する場合はこれより上の行のコピーして、「コピーしたセルの挿入」をしてください。"]
[null,"合計",null,null,null,null,{"$f":"SUM($G$10:$G$42)","v":0},{"$f":"SUM($H$10:$H$42)","v":0},{"$f":"G43-H43","v":0}]
[null,"※領収書は、通し番号を記入した上で、必ず保管しておいてください。（領収書の保管の方法は袋等による保管でも構いません。）"]
[]
[null,"【翌年度への繰越・積立金の内訳】 "]
[null,"※分類欄は下右表の「積立・繰越金の分類項目」から選択してください。"]
[null,"分類",null,null,"金額","積立・繰越の目的",null,null,null,null,"取崩し予定年度"]
[]
[]
[]
[]
[null,"行を追加する場合はこれより上の行のコピーして、「コピーしたセルの挿入」をしてください。"]
[null,"合　計",null,null,{"$f":"SUM($E$49:$E$53)","v":0}]
[]
[]
[]
[null,null,"※「分類」には、下表を参考に該当する費目を記入します。",null,null,null,null,null,"「積立・繰越金の分類項目」"]
[null,null,"１．前年度からの繰越・積立",null,null,null,null,null,"1．農業用機械の購入費"]
[null,null,"２．交付金",null,null,null,null,null,"2．農業用施設の整備費"]
[null,null,"３．利子等その他収入",null,null,null,null,null,"3．道・水路、農地整備費"]
[null,null,"４．個人配分（交付金からの支出）",null,null,null,null,null,"4．災害復旧費"]
[null,null,"５．個人配分（繰越金等からの支出）",null,null,null,null,null,"5．耕作者の突然のリタイヤ時の作業受委託等費用"]
[null,null,"６．役員報酬",null,null,null,null,null,"6．イベント開催費"]
[null,null,"７．研修会等費",null,null,null,null,null,"7．その他"]
[null,null,"８．道・水路管理費",null,null,null,null,null,"8．繰越"]
[null,null,"９．道・水路整備費"]
[null,null,"10．農地管理費"]
[null,null,"11．農地整備費"]
[null,null,"12．鳥獣被害防止対策費"]
[null,null,"13．共同利用機械購入等費"]
[null,null,"14．共同利用施設整備等費"]
[null,null,"15．多面的機能増進活動費"]
[null,null,"16．土地利用調整関係費"]
[null,null,"17．法人設立関係費"]
[null,null,"18．農産物等の販売促進関係費"]
[null,null,"19．都市住民との交流促進関係費"]
[null,null,"20．その他の支出"]
[null,"【集計】 （収支報告書と連動）"]
[null,"項目",null,null,"４月1日～3月31日の計"]
[null,null,null,null,null,null,null,"うち4月1日～12月31日",null,"うち1月1日～３月31日"]
[null,null,null,null,"収入","支出",null,"収入","支出","収入","支出"]
[null,"収入","１．前年度からの繰越・積立",null,{"$f":"SUMIFS($G$10:$G$42,$C$10:$C$42,C83)","v":0},null,null,{"$f":"SUMIFS($G$10:$G$42,$C$10:$C$42,C83,$D$10:$D$42,\">=4\")","v":0},null,{"$f":"SUMIFS($G$10:$G$42,$C$10:$C$42,C83,$D$10:$D$42,\"<=3\")","v":0}]
[null,null,"２．交付金",null,{"$f":"SUMIFS($G$10:$G$42,$C$10:$C$42,C84)","v":0},null,null,{"$f":"SUMIFS($G$10:$G$42,$C$10:$C$42,C84,$D$10:$D$42,\">=4\")","v":0},null,{"$f":"SUMIFS($G$10:$G$42,$C$10:$C$42,C84,$D$10:$D$42,\"<=3\")","v":0}]
[null,null,"３．利子等その他収入",null,{"$f":"SUMIFS($G$10:$G$42,$C$10:$C$42,C85)","v":0},null,null,{"$f":"SUMIFS($G$10:$G$42,$C$10:$C$42,C85,$D$10:$D$42,\">=4\")","v":0},null,{"$f":"SUMIFS($G$10:$G$42,$C$10:$C$42,C85,$D$10:$D$42,\"<=3\")","v":0}]
[null,"個人配分","４．個人配分（交付金からの支出）",null,null,{"$f":"SUMIFS($H$10:$H$42,$C$10:$C$42,C86)","v":0},null,null,{"$f":"SUMIFS($H$10:$H$42,$C$10:$C$42,C86,$D$10:$D$42,\">=4\")","v":0},null,{"$f":"SUMIFS($H$10:$H$42,$C$10:$C$42,C86,$D$10:$D$42,\"<=3\")","v":0}]
[null,null,"５．個人配分（繰越金等からの支出）",null,null,0,null,null,0,null,0]
[null,"共同取組活動","６．役員報酬",null,null,0,null,null,0,null,0]
[null,null,"７．研修会等費",null,null,0,null,null,0,null,0]
[null,null,"８．道・水路管理費",null,null,0,null,null,0,null,0]
[null,null,"９．道・水路整備費",null,null,0,null,null,0,null,0]
[null,null,"10．農地管理費",null,null,0,null,null,0,null,0]
[null,null,"11．農地整備費",null,null,0,null,null,0,null,0]
[null,null,"12．鳥獣被害防止対策費",null,null,0,null,null,0,null,0]
[null,null,"13．共同利用機械購入等費",null,null,0,null,null,0,null,0]
[null,null,"14．共同利用施設整備等費",null,null,0,null,null,0,null,0]
[null,null,"15．多面的機能増進活動費",null,null,0,null,null,0,null,0]
[null,null,"16．土地利用調整関係費",null,null,0,null,null,0,null,0]
[null,null,"17．法人設立関係費",null,null,0,null,null,0,null,0]
[null,null,"18．農産物等の販売促進関係費",null,null,0,null,null,0,null,0]
[null,null,"19．都市住民との交流促進関係費",null,null,0,null,null,0,null,0]
[null,null,"20．その他の支出",null,null,0,null,null,0,null,0]
[null,"翌年度繰越等","翌年度への繰越・積立",null,null,{"$f":"'金銭出納簿（今年度）'!$I$43","v":0},null,null,null,null,{"$f":"'金銭出納簿（今年度）'!$I$43","v":0}]
[null,"合　　計",null,null,{"$f":"SUM(E83:E85)","v":0},{"$f":"SUM(F86:G103)","v":0},null,{"$f":"SUM(H83:H85)","v":0},{"$f":"SUM(I86:I103)","v":0},{"$f":"SUM(J83:J85)","v":0},{"$f":"SUM(K86:K103)","v":0}]

{"sheet":"金銭出納簿（前年度）","index":4,"n_rows":105,"n_cols":13,"rows_kept":105,"cut":false,"hidden":false,"merged":[[3,6,3,8],[49,1,49,2],[51,1,51,2],[51,5,51,9],[49,5,49,9],[50,1,50,2],[50,5,50,9],[48,1,48,2],[5,1,5,13],[6,1,6,13],[7,1,7,13],[43,1,43,4],[48,5,48,6],[52,1,52,2],[52,5,52,9],[53,1,53,10],[54,1,54,2],[90,5,90,6],[54,6,54,10],[80,1,82,2],[80,4,80,10],[81,7,81,8],[81,9,81,10],[82,5,82,6],[91,5,91,6],[92,5,92,6],[83,5,83,6],[84,5,84,6],[85,5,85,6],[86,5,86,6],[87,5,87,6],[103,5,103,6],[104,1,104,2],[104,5,104,6],[42,1,42,12],[98,5,98,6],[99,5,99,6],[100,5,100,6],[101,5,101,6],[102,5,102,6],[93,5,93,6],[94,5,94,6],[95,5,95,6],[96,5,96,6],[97,5,97,6],[88,5,88,6],[89,5,89,6]]}
[]
[]
[null,null,null,null,null,null,"令和6年度","中山間地域等直接支払交付金 金銭出納簿（前年度）"]
[null,null,null,null,null,null,"（多面的機能支払交付金との共通様式）",null,null,null,"組織名：",{"$f":"はじめに!D5","v":0}]
[null,"★「分類」欄は、分類番号（１～20）から選択してください。"]
[null,"★「区分」欄には、農地維持・資源向上（共同）に係る収支は「１」を、資源向上（長寿命化）に係る収支は「２」を必ず入力してください。\n　　区別ができない収支は「１」を記入してください。（多面的機能支払交付金の場合）"]
[null,"★農地維持・資源向上（共同）の交付金を活用して資源向上（長寿命化）の活動を行った際の費用は、区分を「１」にし、「長寿命化への活用」欄に○を記入して\n　ください。（多面的機能支払交付金の場合）"]
[null,"★交付金交付前に活動資金を構成員が一時的に立て替えて会計口座へ繰り入れた場合は、収入欄にその立替額を記入してください。\n　また、返済の際は返済額をマイナスの収入として収入欄に記入し、一時的な立替額が収入/支出の合計に計上されないようにしてください。"]
[null,"日　付","分類","月","内　　容","区分","収入（円）","支出（円）","残高（円）","伝票№","活動実施日","備考","長寿命化への活用"]
[null,null,null,{"$f":"MONTH(B10)","v":1},null,null,null,null,{"$f":"G10-H10","v":0}]
[null,null,null,{"$f":"MONTH(B11)","v":1},null,null,null,null,{"$f":"I10+$G11-$H11","v":0}]
[null,null,null,1,null,null,null,null,{"$f":"I11+$G12-$H12","v":0}]
[null,null,null,1,null,null,null,null,{"$f":"I12+$G13-$H13","v":0}]
[null,null,null,1,null,null,null,null,{"$f":"I13+$G14-$H14","v":0}]
[null,null,null,1,null,null,null,null,0]
[null,null,null,1,null,null,null,null,0]
[null,null,null,1,null,null,null,null,0]
[null,null,null,1,null,null,null,null,0]
[null,null,null,1,null,null,null,null,0]
[null,null,null,1,null,null,null,null,0]
[null,null,null,1,null,null,null,null,0]
[null,null,null,1,null,null,null,null,0]
[null,null,null,1,null,null,null,null,0]
[null,null,null,1,null,null,null,null,0]
[null,null,null,1,null,null,null,null,0]
[null,null,null,1,null,null,null,null,0]
[null,null,null,1,null,null,null,null,0]
[null,null,null,1,null,null,null,null,0]
[null,null,null,1,null,null,null,null,0]
[null,null,null,1,null,null,null,null,0]
[null,null,null,1,null,null,null,null,0]
[null,null,null,1,null,null,null,null,0]
[null,null,null,1,null,null,null,null,0]
[null,null,null,1,null,null,null,null,0]
[null,null,null,1,null,null,null,null,0]
[null,null,null,1,null,null,null,null,0]
[null,null,null,1,null,null,null,null,0]
[null,null,null,1,null,null,null,null,0]
[null,null,null,1,null,null,null,null,0]
[null,null,null,1,null,null,null,null,0]
[null,null,null,1,null,null,null,null,0]
[null,null,null,1,null,null,null,null,0]
[null,"行を追加する場合はこれより上の行のコピーして、「コピーしたセルの挿入」をしてください。"]
[null,"合計",null,null,null,null,{"$f":"SUM($G$10:$G$43)","v":0},{"$f":"SUM($H$10:$H$43)","v":0},{"$f":"G44-H44","v":0}]
[null,"※領収書は、通し番号を記入した上で、必ず保管しておいてください。（領収書の保管の方法は袋等による保管でも構いません。）"]
[]
[null,"【翌年度への繰越・積立金の内訳】 "]
[null,"※分類欄は下右表の「積立・繰越金の分類項目」から選択してください。"]
[null,"分類",null,null,"金額","積立・繰越の目的",null,null,null,null,"取崩し予定年度"]
[]
[]
[]
[]
[null,"行を追加する場合はこれより上の行のコピーして、「コピーしたセルの挿入」をしてください。"]
[null,"合　計",null,null,{"$f":"SUBTOTAL(109,$E$50:$E$54)","v":0}]
[]
[]
[]
[null,null,"※「分類」には、下表を参考に該当する費目を記入します。",null,null,null,null,null,"「積立・繰越金の分類項目」"]
[null,null,"１．前年度からの繰越・積立",null,null,null,null,null,"1．農業用機械の購入費"]
[null,null,"２．交付金",null,null,null,null,null,"2．農業用施設の整備費"]
[null,null,"３．利子等その他収入",null,null,null,null,null,"3．道・水路、農地整備費"]
[null,null,"４．個人配分（交付金からの支出）",null,null,null,null,null,"4．災害復旧費"]
[null,null,"５．個人配分（繰越金等からの支出）",null,null,null,null,null,"5．耕作者の突然のリタイヤ時の作業受委託等費用"]
[null,null,"６．役員報酬",null,null,null,null,null,"6．イベント開催費"]
[null,null,"７．研修会等費",null,null,null,null,null,"7．その他"]
[null,null,"８．道・水路管理費",null,null,null,null,null,"8．繰越"]
[null,null,"９．道・水路整備費"]
[null,null,"10．農地管理費"]
[null,null,"11．農地整備費"]
[null,null,"12．鳥獣被害防止対策費"]
[null,null,"13．共同利用機械購入等費"]
[null,null,"14．共同利用施設整備等費"]
[null,null,"15．多面的機能増進活動費"]
[null,null,"16．土地利用調整関係費"]
[null,null,"17．法人設立関係費"]
[null,null,"18．農産物等の販売促進関係費"]
[null,null,"19．都市住民との交流促進関係費"]
[null,null,"20．その他の支出"]
[null,"【集計】 （収支報告書と連動）"]
[null,"項目",null,null,"４月1日～3月31日の計"]
[null,null,null,null,null,null,null,"うち4月1日～12月31日",null,"うち1月1日～３月31日"]
[null,null,null,null,"収入","支出",null,"収入","支出","収入","支出"]
[null,"収入","１．前年度からの繰越・積立",null,{"$f":"SUMIFS($G$10:$G$43,$C$10:$C$43,C84)","v":0},null,null,{"$f":"SUMIFS($G$10:$G$43,$C$10:$C$43,C84,$D$10:$D$43,\">=4\")","v":0},null,{"$f":"SUMIFS($G$10:$G$43,$C$10:$C$43,C84,$D$10:$D$43,\"<=3\")","v":0}]
[null,null,"２．交付金",null,{"$f":"SUMIFS($G$10:$G$43,$C$10:$C$43,C85)","v":0},null,null,{"$f":"SUMIFS($G$10:$G$43,$C$10:$C$43,C85,$D$10:$D$43,\">=4\")","v":0},null,{"$f":"SUMIFS($G$10:$G$43,$C$10:$C$43,C85,$D$10:$D$43,\"<=3\")","v":0}]
[null,null,"３．利子等その他収入",null,{"$f":"SUMIFS($G$10:$G$43,$C$10:$C$43,C86)","v":0},null,null,{"$f":"SUMIFS($G$10:$G$43,$C$10:$C$43,C86,$D$10:$D$43,\">=4\")","v":0},null,{"$f":"SUMIFS($G$10:$G$43,$C$10:$C$43,C86,$D$10:$D$43,\"<=3\")","v":0}]
[null,"個人配分","４．個人配分（交付金からの支出）",null,null,{"$f":"SUMIFS($H$10:$H$43,$C$10:$C$43,C87)","v":0},null,null,{"$f":"SUMIFS($H$10:$H$43,$C$10:$C$43,C87,$D$10:$D$43,\">=4\")","v":0},null,{"$f":"SUMIFS($H$10:$H$43,$C$10:$C$43,C87,$D$10:$D$43,\"<=3\")","v":0}]
[null,null,"５．個人配分（繰越金等からの支出）",null,null,0,null,null,0,null,0]
[null,"共同取組活動","６．役員報酬",null,null,0,null,null,0,null,0]
[null,null,"７．研修会等費",null,null,0,null,null,0,null,0]
[null,null,"８．道・水路管理費",null,null,0,null,null,0,null,0]
[null,null,"９．道・水路整備費",null,null,0,null,null,0,null,0]
[null,null,"10．農地管理費",null,null,0,null,null,0,null,0]
[null,null,"11．農地整備費",null,null,0,null,null,0,null,0]
[null,null,"12．鳥獣被害防止対策費",null,null,0,null,null,0,null,0]
[null,null,"13．共同利用機械購入等費",null,null,0,null,null,0,null,0]
[null,null,"14．共同利用施設整備等費",null,null,0,null,null,0,null,0]
[null,null,"15．多面的機能増進活動費",null,null,0,null,null,0,null,0]
[null,null,"16．土地利用調整関係費",null,null,0,null,null,0,null,0]
[null,null,"17．法人設立関係費",null,null,0,null,null,0,null,0]
[null,null,"18．農産物等の販売促進関係費",null,null,0,null,null,0,null,0]
[null,null,"19．都市住民との交流促進関係費",null,null,0,null,null,0,null,0]
[null,null,"20．その他の支出",null,null,0,null,null,0,null,0]
[null,"翌年度繰越等","翌年度への繰越・積立",null,null,{"$f":"'金銭出納簿（前年度）'!$I$44","v":0},null,null,null,null,{"$f":"'金銭出納簿（前年度）'!$I$44","v":0}]
[null,"合　　計",null,null,{"$f":"SUM(E84:E86)","v":0},{"$f":"SUM(F87:G104)","v":0},null,{"$f":"SUM(H84:H86)","v":0},{"$f":"SUM(I87:I104)","v":0},{"$f":"SUM(J84:J86)","v":0},{"$f":"SUM(K87:K104)","v":0}]

{"sheet":"【選択肢】","index":5,"n_rows":247,"n_cols":24,"rows_kept":247,"cut":false,"hidden":false,"merged":[[1,5,1,9],[16,2,16,6],[20,23,21,25],[0,16,0,20],[0,21,1,21],[0,22,1,22],[1,18,1,19],[0,0,0,9]]}
[null,null,null,null,null,null,null,null,null,null,null,null,null,null,null,null,"活動記録で選択された取組番号から、区分、項目、取組を自動入力するための表",null,null,null,null,"実施回数のカウント","←活動記録に取組番号が入力された回数をカウントし、これをもとに実施状況報告書の「実施欄」の○、×を判定しています。","都道府県の要綱基本方針において取組を追加した場合の設定方法（県の担当者が作業してください）"]
["A.■か□","B.○か空白","C.○か－か×","D.農村環境保全活動のテーマ","E.高度な保全活動","F.施設（長寿命化）",null,null,null,null,"G.単位","H.構成員一覧の分類","I.金銭出納簿の区分","J.金銭出納簿の収支の分類",null,"プルダウン用","番号","支払区分","活動項目",null,"取組",null,null,"要綱基本方針において取組を追加した場合、以下の方法により修正することができます。"]
["■","○","○","生態系保全","循環かんがいによる水質保全","水路","61　水路の補修","62　水路の更新等",null,null,"km","１.農業者個人",1,"１.前年度持越",null,"○",200,"-","事務処理","事務処理","200 事務処理",null,null,"●共通：活動記録で、追加した取組番号を入力できるようにする"]
["□",null,"－","水質保全","浄化水路による水質保全","農道","63　農道の補修","64　農道の更新等",null,null,"箇所","２.農事組合法人",2,"２.交付金",null,"○",300,"-","会議","会議","300 会議",null,null,"　１）「取組番号早見表シート」及び「取組番号シート」に番号、支払区分、活動項目、取組を追加する。"]
[null,null,"×","景観形成・生活環境保全","地下水かん養","ため池","65　ため池の補修","66　ため池（附帯施設）の更新等",null,null,null,"３.営農組合",null,"３.利子等",null,"○",null,null,null,null,null,null,null,"　２）「選択肢」シートのP列～T列の74行以降に行を挿入し、追加した取組番号、支払区分、活動項目、取組を入力する。"]
[null,null,null,"水田貯留・地下水かん養","持続的な水管理",null,null,null,null,null,null,"４.その他の農業者団体",null,"４.日当",null,"○",1,"農地維持","点検・計画策定","点検","1 点検",null,null,"　３）「選択肢」シートU列の74行以降にU73セル（活動記録に入力された回数のカウントを行う数式）をコピーする。　"]
[null,null,null,"資源循環","土壌流出防止",null,null,null,null,null,null,"５.農業者以外個人",null,"５.外注費",null,"○",2,"農地維持","点検・計画策定","計画策定","2 年度活動計画の策定",null,null,"　　　（この作業により、活動記録に取組番号が入力された回数がＰ列に入力され、これをもとに実施状況報告書の「実施欄」の○、×を判定します。）"]
[null,null,null,null,"生物多様性の回復",null,null,null,null,null,null,"６.自治会",null,"６.その他支出",null,"○",3,"農地維持","研修","研修","3 事務・組織運営等に関する研修、機械の安全使用に関する研修"]
[null,null,null,null,"水環境の回復",null,null,null,null,null,null,"７.女性会",null,"７.返還",null,"○",4,"農地維持","実践活動","農用地","4 遊休農地発生防止のための保全管理",null,null,"●農村環境保全活動、多面的機能の増進を図る活動、長寿命化のための活動を追加する場合は以下の設定を行う"]
[null,null,null,null,"持続的な畦畔管理",null,null,null,null,null,null,"８.子供会",null,null,null,"○",5,"農地維持","実践活動","農用地","5 畦畔・法面・防風林の草刈り",null,null,"①農村環境保全活動の項目を追加する場合"]
[null,null,null,null,"専門家の指導",null,null,null,null,null,null,"９.土地改良区",null,null,null,"○",6,"農地維持","実践活動","農用地","6 鳥獣害防護柵等の保守管理",null,null,"活動計画書３（２）１）で実践活動を選択する際に、追加した項目を選択できるようにする"]
[null,null,null,null,null,null,null,null,null,null,null,"10.JA",null,null,null,"○",7,"農地維持","実践活動","水路","7 水路の草刈り",null,null,"　１）「選択肢」シートのV列の「50　地域資源の活用・資源循環活動（資源循環）」の下に取組名を入力する。"]
[null,null,null,null,null,null,null,null,null,null,null,"11.学校・PTA",null,null,null,"○",8,"農地維持","実践活動","水路","8 水路の泥上げ",null,null,"　　　　このとき、「●共通」で入力した取組名と同じになるように注意してください。"]
[null,null,null,null,null,null,null,null,null,null,null,"12.NPO",null,null,null,"○",9,"農地維持","実践活動","水路","9 水路附帯施設の保守管理",null,null,"　２）「数式」タブの「名前の管理」を選択し、リストの中から「K.農村環境保全活動」を選択し、「参照範囲」の右のアイコンをクリック"]
[null,null,null,null,null,null,null,null,null,null,null,"13.その他の農業者以外団体",null,null,null,"○",10,"農地維持","実践活動","農道","10 農道の草刈り",null,null,"　３）参照範囲に追加した取組を含むよう範囲を選択し直し、確定する。"]
[null,null,null,null,null,null,null,null,null,null,null,null,null,null,null,"○",11,"農地維持","実践活動","農道","11 農道側溝の泥上げ"]
["N.月","O.環境負荷低減の取組","作物",null,null,null,null,"P.時間",null,null,null,null,null,null,null,"○",12,"農地維持","実践活動","農道","12 路面の維持",null,null,"②多面的機能の増進を図る活動の項目を追加する場合"]
[1,"長期中干し","水稲",null,null,null,null,0.5,null,null,null,null,null,null,null,"○",13,"農地維持","実践活動","ため池","13 ため池の草刈り",null,null,"②-1　活動計画書３（２）２）で都道府県、市町村が認める具体的な活動の内容を入力できるようにする"]
[2,"冬期湛水","水稲",null,null,null,null,1,null,null,null,null,null,null,null,"○",14,"農地維持","実践活動","ため池","14 ため池の泥上げ",null,null,"　１）「活動計画書」シートの147行目の「59　都道府県、市町村が特に認める活動」の下に行を挿入し、取組名を入力する。"]
[3,"夏期湛水","野菜","イモ類","麦類","豆類","なたね類",1.5,null,null,null,null,null,null,null,"○",15,"農地維持","実践活動","ため池","15 ため池附帯施設の保守管理",null,null,"　　　　このとき、「●共通」で入力した取組名と同じになるように注意してください。"]
[4,"中干し延期","水稲",null,null,null,null,2,null,null,null,null,null,null,null,"○",16,"農地維持","実践活動","共通","16 異常気象時の対応",null,null,"　　　　２）報告書においても同様に活動項目「59　都道府県、市町村が特に認める活動」の下に行を挿入して取組名を入力し、\n　　　　　　　「計画」「実施」欄については、「59　都道府県、市町村が特に認める活動」の「計画」「実施」欄にある数式をコピーする。"]
[5,"江の設置_作溝実施","水稲",null,null,null,null,2.5,null,null,null,null,null,null,null,"○",17,"農地維持","推進活動","推進活動","17 農業者の検討会の開催"]
[6,"江の設置_作溝未実施","水稲",null,null,null,null,3,null,null,null,null,null,null,null,"○",18,"農地維持","推進活動","推進活動","18 農業者に対する意向調査、現地調査"]
[7,null,null,null,null,null,null,3.5,null,null,null,null,null,null,null,"○",19,"農地維持","推進活動","推進活動","19 不在村地主との連絡体制の整備等",null,null,"②-2　活動計画書４（１）の加算措置の適用条件の確認ができるようにする"]
[8,null,null,null,null,null,null,4,null,null,null,null,null,null,null,"○",20,"農地維持","推進活動","推進活動","20 集落外住民や地域住民との意見交換等",null,null,"　　　「加算措置（みどり加算以外）」シートの「多面的機能の更なる増進に向けた活動への支援」の適用条件の確認欄についても同様に"]
[9,null,null,null,null,null,null,4.5,null,null,null,null,null,null,null,"○",21,"農地維持","推進活動","推進活動","21 地域住民等に対する意向調査等",null,null,"　　　「59　都道府県、市町村が特に認める活動」の下に行を挿入し、取組名を入力する。"]
[10,null,null,null,null,null,null,5,null,null,null,null,null,null,null,"○",22,"農地維持","推進活動","推進活動","22 有識者等による研修会、検討会の開催",null,null,"　　　「本事業計画の活動」の欄については、「59　都道府県、市町村が特に認める活動」の欄にある数式をコピーする。"]
[11,null,null,null,null,null,null,5.5,null,null,null,null,null,null,null,"○",23,"農地維持","推進活動","推進活動","23 その他"]
[12,null,null,null,null,null,null,6,null,null,null,null,null,null,null,"○",24,"共同","機能診断・計画策定","機能診断","24 農用地の機能診断",null,null,"③長寿命化の項目を追加する場合"]
[null,null,null,null,null,null,null,6.5,null,null,null,null,null,null,null,"○",25,"共同","機能診断・計画策定","機能診断","25 水路の機能診断",null,null,"活動計画書３（３）で実践活動を選択する際に、追加した項目を選択できるようにする"]
[null,null,null,null,null,null,null,7,null,null,null,null,null,null,null,"○",26,"共同","機能診断・計画策定","機能診断","26 農道の機能診断",null,null,"　１）対象施設を追加する場合は、「選択肢」シートのF6セルに追加する対象施設名を入力する。"]
[null,null,null,null,null,null,null,7.5,null,null,null,null,null,null,null,"○",27,"共同","機能診断・計画策定","機能診断","27 ため池の機能診断",null,null,"　　　次に、水路を対象とした取組であればH3セルより右のセルに、農道を対象とした取組であればH4セルより右のセルに、といった要領で番号と取組名"]
[null,null,null,null,null,null,null,8,null,null,null,null,null,null,null,"○",28,"共同","機能診断・計画策定","計画策定","28 年度活動計画の策定",null,null,"　　　を入力する。このとき、「●共通」で入力した取組名と同じになるように注意してください。"]
[null,null,null,null,null,null,null,8.5,null,null,null,null,null,null,null,"○",29,"共同","研修","研修","29 機能診断・補修技術等に関する研修",null,null,"　２）新たに対象施設を追加した場合は、その施設名を名称とし、参照範囲を「G6:J6」とした名前を定義する。"]
[null,null,null,null,null,null,null,9,null,null,null,null,null,null,null,"○",30,"共同","実践活動","農用地","30 農用地の軽微な補修等"]
[null,null,null,null,null,null,null,9.5,null,null,null,null,null,null,null,"○",31,"共同","実践活動","水路","31 水路の軽微な補修等"]
[null,null,null,null,null,null,null,10,null,null,null,null,null,null,null,"○",32,"共同","実践活動","農道","32 農道の軽微な補修等"]
[null,null,null,null,null,null,null,10.5,null,null,null,null,null,null,null,"○",33,"共同","実践活動","ため池","33 ため池の軽微な補修等"]
[null,null,null,null,null,null,null,11,null,null,null,null,null,null,null,"○",34,"共同","計画策定","生態系保全","34 生物多様性保全計画の策定"]
[null,null,null,null,null,null,null,11.5,null,null,null,null,null,null,null,"○",35,"共同","計画策定","水質保全","35 水質保全計画、農地保全計画の策定"]
[null,null,null,null,null,null,null,12,null,null,null,null,null,null,null,"○",36,"共同","計画策定","景観形成・生活環境保全","36 景観形成計画、生活環境保全計画の策定"]
[null,null,null,null,null,null,null,null,null,null,null,null,null,null,null,"○",37,"共同","計画策定","水田貯留・地下水かん養","37 水田貯留計画、地下水かん養計画の策定",null,"活動計画書、実施状況報告書のプルダウン選択用"]
[null,null,null,null,null,null,null,null,null,null,null,null,null,null,null,"○",38,"共同","計画策定","資源循環","38 資源循環計画の策定",null,"Ｋ.農村環境保全活動"]
[null,null,null,null,null,null,null,null,null,null,null,null,null,null,null,"○",39,"共同","実践活動","生態系保全","39 生物の生息状況の把握（生態系保全）",null,"39 生物の生息状況の把握（生態系保全）"]
[null,null,null,null,null,null,null,null,null,null,null,null,null,null,null,"○",40,"共同","実践活動","生態系保全","40 外来種の駆除（生態系保全）",null,"40 外来種の駆除（生態系保全）"]
[null,null,null,null,null,null,null,null,null,null,null,null,null,null,null,"○",41,"共同","実践活動","生態系保全","41 その他（生態系保全）",null,"41 その他（生態系保全）"]
[null,null,null,null,null,null,null,null,null,null,null,null,null,null,null,"○",42,"共同","実践活動","水質保全","42 水質モニタリングの実施・記録管理（水質保全）",null,"42 水質モニタリングの実施・記録管理（水質保全）"]
[null,null,null,null,null,null,null,null,null,null,null,null,null,null,null,"○",43,"共同","実践活動","水質保全","43 畑からの土砂流出対策（水質保全）",null,"43 畑からの土砂流出対策（水質保全）"]
[null,null,null,null,null,null,null,null,null,null,null,null,null,null,null,"○",44,"共同","実践活動","水質保全","44 その他（水質保全）",null,"44 その他（水質保全）"]
[null,null,null,null,null,null,null,null,null,null,null,null,null,null,null,"○",45,"共同","実践活動","景観形成・生活環境保全","45 植栽等の景観形成活動（景観形成・生活環境保全）",null,"45 植栽等の景観形成活動（景観形成・生活環境保全）"]
[null,null,null,null,null,null,null,null,null,null,null,null,null,null,null,"○",46,"共同","実践活動","景観形成・生活環境保全","46 施設等の定期的な巡回点検・清掃（景観形成・生活環境保全）",null,"46 施設等の定期的な巡回点検・清掃（景観形成・生活環境保全）"]
[null,null,null,null,null,null,null,null,null,null,null,null,null,null,null,"○",47,"共同","実践活動","景観形成・生活環境保全","47 その他（景観形成・生活環境保全）",null,"47 その他（景観形成・生活環境保全）"]
[null,null,null,null,null,null,null,null,null,null,null,null,null,null,null,"○",48,"共同","実践活動","水田貯留・地下水かん養","48 水田の貯留機能向上活動（水田貯留機能増進・地下水かん養）",null,"48 水田の貯留機能向上活動（水田貯留機能増進・地下水かん養）"]
[null,null,null,null,null,null,null,null,null,null,null,null,null,null,null,"○",49,"共同","実践活動","水田貯留・地下水かん養","49 地下水かん養活動、水源かん養林の保全（水田貯留機能増進・地下水かん養）",null,"49 地下水かん養活動、水源かん養林の保全（水田貯留機能増進・地下水かん養）"]
[null,null,null,null,null,null,null,null,null,null,null,null,null,null,null,"○",50,"共同","実践活動","資源循環","50 地域資源の活用・資源循環活動（資源循環）",null,"50 地域資源の活用・資源循環活動（資源循環）"]
[null,null,null,null,null,null,null,null,null,null,null,null,null,null,null,"○",51,"共同","啓発・普及","啓発・普及","51 啓発・普及活動"]
[null,null,null,null,null,null,null,null,null,null,null,null,null,null,null,"○",52,"共同","増進活動","増進活動","52 遊休農地の有効活用"]
[null,null,null,null,null,null,null,null,null,null,null,null,null,null,null,"○",53,"共同","増進活動","増進活動","53 鳥獣被害防止対策及び環境改善活動の強化"]
[null,null,null,null,null,null,null,null,null,null,null,null,null,null,null,"○",54,"共同","増進活動","増進活動","54 地域住民による直営施工"]
[null,null,null,null,null,null,null,null,null,null,null,null,null,null,null,"○",55,"共同","増進活動","増進活動","55 防災・減災力の強化"]
[null,null,null,null,null,null,null,null,null,null,null,null,null,null,null,"○",56,"共同","増進活動","増進活動","56 農村環境保全活動の幅広い展開"]
[null,null,null,null,null,null,null,null,null,null,null,null,null,null,null,"○",57,"共同","増進活動","増進活動","57 やすらぎ・福祉及び教育機能の活用"]
[null,null,null,null,null,null,null,null,null,null,null,null,null,null,null,"○",58,"共同","増進活動","増進活動","58 農村文化の伝承を通じた農村コミュニティの強化"]
[null,null,null,null,null,null,null,null,null,null,null,null,null,null,null,"○","58-2","共同","増進活動","増進活動","58-2 広域活動組織における活動支援班による活動の実施"]
[null,null,null,null,null,null,null,null,null,null,null,null,null,null,null,"○","58-3","共同","増進活動","増進活動","58-3 水管理を通じた環境負荷低減活動の強化"]
[null,null,null,null,null,null,null,null,null,null,null,null,null,null,null,"○",59,"共同","増進活動","増進活動","59 都道府県、市町村が特に認める活動"]
[null,null,null,null,null,null,null,null,null,null,null,null,null,null,null,"○",60,"共同","増進活動","増進活動","60 広報活動・農村関係人口の拡大"]
[null,null,null,null,null,null,null,null,null,null,null,null,null,null,null,"○",61,"長寿命化","実践活動","水路","61 水路の補修"]
[null,null,null,null,null,null,null,null,null,null,null,null,null,null,null,"○",62,"長寿命化","実践活動","水路","62 水路の更新等"]
[null,null,null,null,null,null,null,null,null,null,null,null,null,null,null,"○",63,"長寿命化","実践活動","農道","63 農道の補修"]
[null,null,null,null,null,null,null,null,null,null,null,null,null,null,null,"○",64,"長寿命化","実践活動","農道","64 農道の更新等"]
[null,null,null,null,null,null,null,null,null,null,null,null,null,null,null,"○",65,"長寿命化","実践活動","ため池","65 ため池の補修"]
[null,null,null,null,null,null,null,null,null,null,null,null,null,null,null,"○",66,"長寿命化","実践活動","ため池","66 ため池（附帯施設）の更新等"]
[null,null,null,null,null,null,null,null,null,null,null,null,null,null,null,"○",67,"中山間直払","賃借権設定・農作業の委託"]
[null,null,null,null,null,null,null,null,null,null,null,null,null,null,null,"○",68,"中山間直払","既荒廃農用地の復旧・林地化・畜産的利用"]
[null,null,null,null,null,null,null,null,null,null,null,null,null,null,null,"○",69,"中山間直払","既荒廃農用地の保全管理"]
[null,null,null,null,null,null,null,null,null,null,null,null,null,null,null,"○",70,"中山間直払","農地の法面管理（見回り、畦塗り等）"]
[null,null,null,null,null,null,null,null,null,null,null,null,null,null,null,"○",71,"中山間直払","柵、ネットの設置等鳥獣被害防止"]
[null,null,null,null,null,null,null,null,null,null,null,null,null,null,null,"○",72,"中山間直払","簡易な基盤整備（排水対策等）"]
[null,null,null,null,null,null,null,null,null,null,null,null,null,null,null,"○",73,"中山間直払","担い手の確保"]
[null,null,null,null,null,null,null,null,null,null,null,null,null,null,null,"○",74,"中山間直払","地場農産物の加工・販売"]
[null,null,null,null,null,null,null,null,null,null,null,null,null,null,null,"○",75,"中山間直払","その他（土地改良事業、災害復旧、地目変更等）"]
[null,null,null,null,null,null,null,null,null,null,null,null,null,null,null,"○",76,"中山間直払","水路管理活動（草刈り、泥上げ等）"]
[null,null,null,null,null,null,null,null,null,null,null,null,null,null,null,"○",77,"中山間直払","農道管理活動（草刈り等）"]
[null,null,null,null,null,null,null,null,null,null,null,null,null,null,null,"○",78,"中山間直払","農用地管理作業（草刈り、耕耘等）"]
[null,null,null,null,null,null,null,null,null,null,null,null,null,null,null,"○",79,"中山間直払","【必須】多面的機能を増進する活動（周辺林地の下草刈）"]
[null,null,null,null,null,null,null,null,null,null,null,null,null,null,null,"○",80,"中山間直払","【必須】多面的機能を増進する活動（土壌流亡に配慮した営農）"]
[null,null,null,null,null,null,null,null,null,null,null,null,null,null,null,"○",81,"中山間直払","【必須】多面的機能を増進する活動（棚田オーナー制度）"]
[null,null,null,null,null,null,null,null,null,null,null,null,null,null,null,"○",82,"中山間直払","【必須】多面的機能を増進する活動（市民農園等の開設・運営）"]
[null,null,null,null,null,null,null,null,null,null,null,null,null,null,null,"○",83,"中山間直払","【必須】多面的機能を増進する活動（体験民宿（グリーン・ツーリズム）"]
[null,null,null,null,null,null,null,null,null,null,null,null,null,null,null,"○",84,"中山間直払","【必須】多面的機能を増進する活動（景観作物の作付け）"]
[null,null,null,null,null,null,null,null,null,null,null,null,null,null,null,"○",85,"中山間直払","【必須】多面的機能を増進する活動（魚類・昆虫類の保護）"]
[null,null,null,null,null,null,null,null,null,null,null,null,null,null,null,"○",86,"中山間直払","【必須】多面的機能を増進する活動（鳥類の餌場の確保）"]
[null,null,null,null,null,null,null,null,null,null,null,null,null,null,null,"○",87,"中山間直払","【必須】多面的機能を増進する活動（粗放的畜産）"]
[null,null,null,null,null,null,null,null,null,null,null,null,null,null,null,"○",88,"中山間直払","【必須】多面的機能を増進する活動（堆肥、拮抗作物、合鴨、輪作、緑肥作物等）"]
[null,null,null,null,null,null,null,null,null,null,null,null,null,null,null,"○",89,"中山間直払","【必須】多面的機能を増進する活動（その他活動）"]
[null,null,null,null,null,null,null,null,null,null,null,null,null,null,null,"○",90,"中山間直払","【必須(体制整備単価)】ネットワーク化活動計画の話合い"]
[null,null,null,null,null,null,null,null,null,null,null,null,null,null,null,"○",91,"中山間直払","総会"]
[null,null,null,null,null,null,null,null,null,null,null,null,null,null,null,"○",92,"中山間直払","役員会"]
[null,null,null,null,null,null,null,null,null,null,null,null,null,null,null,"○",93,"中山間直払","現地確認立会い"]
[null,null,null,null,null,null,null,null,null,null,null,null,null,null,null,"○",94,"中山間直払","市役所打合せ"]
[null,null,null,null,null,null,null,null,null,null,null,null,null,null,null,"○",95,"中山間直払","研修"]
[null,null,null,null,null,null,null,null,null,null,null,null,null,null,null,"○",96,"中山間直払","その他"]
[null,null,null,null,null,null,null,null,null,null,null,null,null,null,null,"○",97,"中山間直払","※適宜【選択肢】シートに項目を追加ください"]
[null,null,null,null,null,null,null,null,null,null,null,null,null,null,null,"○",98,"中山間直払","※適宜【選択肢】シートに項目を追加ください"]
[null,null,null,null,null,null,null,null,null,null,null,null,null,null,null,"○",99,"中山間直払","※適宜【選択肢】シートに項目を追加ください"]
[null,null,null,null,null,null,null,null,null,null,null,null,null,null,null,"○",100,"中山間直払","※適宜【選択肢】シートに項目を追加ください"]
[null,null,null,null,null,null,null,null,null,null,null,null,null,null,null,"○",101,"中山間直払","※適宜【選択肢】シートに項目を追加ください"]
[null,null,null,null,null,null,null,null,null,null,null,null,null,null,null,"○",102,"中山間直払","※適宜【選択肢】シートに項目を追加ください"]
[null,null,null,null,null,null,null,null,null,null,null,null,null,null,null,"○",103,"中山間直払","※適宜【選択肢】シートに項目を追加ください"]
[null,null,null,null,null,null,null,null,null,null,null,null,null,null,null,"○",104,"中山間直払","※適宜【選択肢】シートに項目を追加ください"]
[null,null,null,null,null,null,null,null,null,null,null,null,null,null,null,"○",105,"中山間直払","※適宜【選択肢】シートに項目を追加ください"]
[null,null,null,null,null,null,null,null,null,null,null,null,null,null,null,"○",106,"中山間直払","※適宜【選択肢】シートに項目を追加ください"]
[null,null,null,null,null,null,null,null,null,null,null,null,null,null,null,"○",107,"中山間直払","※適宜【選択肢】シートに項目を追加ください"]
[null,null,null,null,null,null,null,null,null,null,null,null,null,null,null,"○",108,"中山間直払","※適宜【選択肢】シートに項目を追加ください"]
[null,null,null,null,null,null,null,null,null,null,null,null,null,null,null,"○"]
[null,null,null,null,null,null,null,null,null,null,null,null,null,null,null,"○"]
[null,null,null,null,null,null,null,null,null,null,null,null,null,null,null,null,null,null,"この線より上に行を挿入してください。"]
[]
[]
[]
[]
[]
[]
[]
[]
[]
[]
[]
[]
[]
[]
[null,null,null,null,null,null,null,null,null,null,null,null,null,null,null,{"$f":"_xlfn._xlws.FILTER(P3:U117,P3:P117=\"○\",\"\")","v":"○"},200,"-","事務処理","事務処理","200 事務処理"]
[null,null,null,null,null,null,null,null,null,null,null,null,null,null,null,"○",300,"-","会議","会議","300 会議"]
[null,null,null,null,null,null,null,null,null,null,null,null,null,null,null,"○",0,0,0,0,0]
[null,null,null,null,null,null,null,null,null,null,null,null,null,null,null,"○",1,"農地維持","点検・計画策定","点検","1 点検"]
[null,null,null,null,null,null,null,null,null,null,null,null,null,null,null,"○",2,"農地維持","点検・計画策定","計画策定","2 年度活動計画の策定"]
[null,null,null,null,null,null,null,null,null,null,null,null,null,null,null,"○",3,"農地維持","研修","研修","3 事務・組織運営等に関する研修、機械の安全使用に関する研修"]
[null,null,null,null,null,null,null,null,null,null,null,null,null,null,null,"○",4,"農地維持","実践活動","農用地","4 遊休農地発生防止のための保全管理"]
[null,null,null,null,null,null,null,null,null,null,null,null,null,null,null,"○",5,"農地維持","実践活動","農用地","5 畦畔・法面・防風林の草刈り"]
[null,null,null,null,null,null,null,null,null,null,null,null,null,null,null,"○",6,"農地維持","実践活動","農用地","6 鳥獣害防護柵等の保守管理"]
[null,null,null,null,null,null,null,null,null,null,null,null,null,null,null,"○",7,"農地維持","実践活動","水路","7 水路の草刈り"]
[null,null,null,null,null,null,null,null,null,null,null,null,null,null,null,"○",8,"農地維持","実践活動","水路","8 水路の泥上げ"]
[null,null,null,null,null,null,null,null,null,null,null,null,null,null,null,"○",9,"農地維持","実践活動","水路","9 水路附帯施設の保守管理"]
[null,null,null,null,null,null,null,null,null,null,null,null,null,null,null,"○",10,"農地維持","実践活動","農道","10 農道の草刈り"]
[null,null,null,null,null,null,null,null,null,null,null,null,null,null,null,"○",11,"農地維持","実践活動","農道","11 農道側溝の泥上げ"]
[null,null,null,null,null,null,null,null,null,null,null,null,null,null,null,"○",12,"農地維持","実践活動","農道","12 路面の維持"]
[null,null,null,null,null,null,null,null,null,null,null,null,null,null,null,"○",13,"農地維持","実践活動","ため池","13 ため池の草刈り"]
[null,null,null,null,null,null,null,null,null,null,null,null,null,null,null,"○",14,"農地維持","実践活動","ため池","14 ため池の泥上げ"]
[null,null,null,null,null,null,null,null,null,null,null,null,null,null,null,"○",15,"農地維持","実践活動","ため池","15 ため池附帯施設の保守管理"]
[null,null,null,null,null,null,null,null,null,null,null,null,null,null,null,"○",16,"農地維持","実践活動","共通","16 異常気象時の対応"]
[null,null,null,null,null,null,null,null,null,null,null,null,null,null,null,"○",17,"農地維持","推進活動","推進活動","17 農業者の検討会の開催"]
[null,null,null,null,null,null,null,null,null,null,null,null,null,null,null,"○",18,"農地維持","推進活動","推進活動","18 農業者に対する意向調査、現地調査"]
[null,null,null,null,null,null,null,null,null,null,null,null,null,null,null,"○",19,"農地維持","推進活動","推進活動","19 不在村地主との連絡体制の整備等"]
[null,null,null,null,null,null,null,null,null,null,null,null,null,null,null,"○",20,"農地維持","推進活動","推進活動","20 集落外住民や地域住民との意見交換等"]
[null,null,null,null,null,null,null,null,null,null,null,null,null,null,null,"○",21,"農地維持","推進活動","推進活動","21 地域住民等に対する意向調査等"]
[null,null,null,null,null,null,null,null,null,null,null,null,null,null,null,"○",22,"農地維持","推進活動","推進活動","22 有識者等による研修会、検討会の開催"]
[null,null,null,null,null,null,null,null,null,null,null,null,null,null,null,"○",23,"農地維持","推進活動","推進活動","23 その他"]
[null,null,null,null,null,null,null,null,null,null,null,null,null,null,null,"○",24,"共同","機能診断・計画策定","機能診断","24 農用地の機能診断"]
[null,null,null,null,null,null,null,null,null,null,null,null,null,null,null,"○",25,"共同","機能診断・計画策定","機能診断","25 水路の機能診断"]
[null,null,null,null,null,null,null,null,null,null,null,null,null,null,null,"○",26,"共同","機能診断・計画策定","機能診断","26 農道の機能診断"]
[null,null,null,null,null,null,null,null,null,null,null,null,null,null,null,"○",27,"共同","機能診断・計画策定","機能診断","27 ため池の機能診断"]
[null,null,null,null,null,null,null,null,null,null,null,null,null,null,null,"○",28,"共同","機能診断・計画策定","計画策定","28 年度活動計画の策定"]
[null,null,null,null,null,null,null,null,null,null,null,null,null,null,null,"○",29,"共同","研修","研修","29 機能診断・補修技術等に関する研修"]
[null,null,null,null,null,null,null,null,null,null,null,null,null,null,null,"○",30,"共同","実践活動","農用地","30 農用地の軽微な補修等"]
[null,null,null,null,null,null,null,null,null,null,null,null,null,null,null,"○",31,"共同","実践活動","水路","31 水路の軽微な補修等"]
[null,null,null,null,null,null,null,null,null,null,null,null,null,null,null,"○",32,"共同","実践活動","農道","32 農道の軽微な補修等"]
[null,null,null,null,null,null,null,null,null,null,null,null,null,null,null,"○",33,"共同","実践活動","ため池","33 ため池の軽微な補修等"]
[null,null,null,null,null,null,null,null,null,null,null,null,null,null,null,"○",34,"共同","計画策定","生態系保全","34 生物多様性保全計画の策定"]
[null,null,null,null,null,null,null,null,null,null,null,null,null,null,null,"○",35,"共同","計画策定","水質保全","35 水質保全計画、農地保全計画の策定"]
[null,null,null,null,null,null,null,null,null,null,null,null,null,null,null,"○",36,"共同","計画策定","景観形成・生活環境保全","36 景観形成計画、生活環境保全計画の策定"]
[null,null,null,null,null,null,null,null,null,null,null,null,null,null,null,"○",37,"共同","計画策定","水田貯留・地下水かん養","37 水田貯留計画、地下水かん養計画の策定"]
[null,null,null,null,null,null,null,null,null,null,null,null,null,null,null,"○",38,"共同","計画策定","資源循環","38 資源循環計画の策定"]
[null,null,null,null,null,null,null,null,null,null,null,null,null,null,null,"○",39,"共同","実践活動","生態系保全","39 生物の生息状況の把握（生態系保全）"]
[null,null,null,null,null,null,null,null,null,null,null,null,null,null,null,"○",40,"共同","実践活動","生態系保全","40 外来種の駆除（生態系保全）"]
[null,null,null,null,null,null,null,null,null,null,null,null,null,null,null,"○",41,"共同","実践活動","生態系保全","41 その他（生態系保全）"]
[null,null,null,null,null,null,null,null,null,null,null,null,null,null,null,"○",42,"共同","実践活動","水質保全","42 水質モニタリングの実施・記録管理（水質保全）"]
[null,null,null,null,null,null,null,null,null,null,null,null,null,null,null,"○",43,"共同","実践活動","水質保全","43 畑からの土砂流出対策（水質保全）"]
[null,null,null,null,null,null,null,null,null,null,null,null,null,null,null,"○",44,"共同","実践活動","水質保全","44 その他（水質保全）"]
[null,null,null,null,null,null,null,null,null,null,null,null,null,null,null,"○",45,"共同","実践活動","景観形成・生活環境保全","45 植栽等の景観形成活動（景観形成・生活環境保全）"]
[null,null,null,null,null,null,null,null,null,null,null,null,null,null,null,"○",46,"共同","実践活動","景観形成・生活環境保全","46 施設等の定期的な巡回点検・清掃（景観形成・生活環境保全）"]
[null,null,null,null,null,null,null,null,null,null,null,null,null,null,null,"○",47,"共同","実践活動","景観形成・生活環境保全","47 その他（景観形成・生活環境保全）"]
[null,null,null,null,null,null,null,null,null,null,null,null,null,null,null,"○",48,"共同","実践活動","水田貯留・地下水かん養","48 水田の貯留機能向上活動（水田貯留機能増進・地下水かん養）"]
[null,null,null,null,null,null,null,null,null,null,null,null,null,null,null,"○",49,"共同","実践活動","水田貯留・地下水かん養","49 地下水かん養活動、水源かん養林の保全（水田貯留機能増進・地下水かん養）"]
[null,null,null,null,null,null,null,null,null,null,null,null,null,null,null,"○",50,"共同","実践活動","資源循環","50 地域資源の活用・資源循環活動（資源循環）"]
[null,null,null,null,null,null,null,null,null,null,null,null,null,null,null,"○",51,"共同","啓発・普及","啓発・普及","51 啓発・普及活動"]
[null,null,null,null,null,null,null,null,null,null,null,null,null,null,null,"○",52,"共同","増進活動","増進活動","52 遊休農地の有効活用"]
[null,null,null,null,null,null,null,null,null,null,null,null,null,null,null,"○",53,"共同","増進活動","増進活動","53 鳥獣被害防止対策及び環境改善活動の強化"]
[null,null,null,null,null,null,null,null,null,null,null,null,null,null,null,"○",54,"共同","増進活動","増進活動","54 地域住民による直営施工"]
[null,null,null,null,null,null,null,null,null,null,null,null,null,null,null,"○",55,"共同","増進活動","増進活動","55 防災・減災力の強化"]
[null,null,null,null,null,null,null,null,null,null,null,null,null,null,null,"○",56,"共同","増進活動","増進活動","56 農村環境保全活動の幅広い展開"]
[null,null,null,null,null,null,null,null,null,null,null,null,null,null,null,"○",57,"共同","増進活動","増進活動","57 やすらぎ・福祉及び教育機能の活用"]
[null,null,null,null,null,null,null,null,null,null,null,null,null,null,null,"○",58,"共同","増進活動","増進活動","58 農村文化の伝承を通じた農村コミュニティの強化"]
[null,null,null,null,null,null,null,null,null,null,null,null,null,null,null,"○","58-2","共同","増進活動","増進活動","58-2 広域活動組織における活動支援班による活動の実施"]
[null,null,null,null,null,null,null,null,null,null,null,null,null,null,null,"○","58-3","共同","増進活動","増進活動","58-3 水管理を通じた環境負荷低減活動の強化"]
[null,null,null,null,null,null,null,null,null,null,null,null,null,null,null,"○",59,"共同","増進活動","増進活動","59 都道府県、市町村が特に認める活動"]
[null,null,null,null,null,null,null,null,null,null,null,null,null,null,null,"○",60,"共同","増進活動","増進活動","60 広報活動・農村関係人口の拡大"]
[null,null,null,null,null,null,null,null,null,null,null,null,null,null,null,"○",61,"長寿命化","実践活動","水路","61 水路の補修"]
[null,null,null,null,null,null,null,null,null,null,null,null,null,null,null,"○",62,"長寿命化","実践活動","水路","62 水路の更新等"]
[null,null,null,null,null,null,null,null,null,null,null,null,null,null,null,"○",63,"長寿命化","実践活動","農道","63 農道の補修"]
[null,null,null,null,null,null,null,null,null,null,null,null,null,null,null,"○",64,"長寿命化","実践活動","農道","64 農道の更新等"]
[null,null,null,null,null,null,null,null,null,null,null,null,null,null,null,"○",65,"長寿命化","実践活動","ため池","65 ため池の補修"]
[null,null,null,null,null,null,null,null,null,null,null,null,null,null,null,"○",66,"長寿命化","実践活動","ため池","66 ため池（附帯施設）の更新等"]
[null,null,null,null,null,null,null,null,null,null,null,null,null,null,null,"○",67,"中山間直払","賃借権設定・農作業の委託",0,0]
[null,null,null,null,null,null,null,null,null,null,null,null,null,null,null,"○",68,"中山間直払","既荒廃農用地の復旧・林地化・畜産的利用",0,0]
[null,null,null,null,null,null,null,null,null,null,null,null,null,null,null,"○",69,"中山間直払","既荒廃農用地の保全管理",0,0]
[null,null,null,null,null,null,null,null,null,null,null,null,null,null,null,"○",70,"中山間直払","農地の法面管理（見回り、畦塗り等）",0,0]
[null,null,null,null,null,null,null,null,null,null,null,null,null,null,null,"○",71,"中山間直払","柵、ネットの設置等鳥獣被害防止",0,0]
[null,null,null,null,null,null,null,null,null,null,null,null,null,null,null,"○",72,"中山間直払","簡易な基盤整備（排水対策等）",0,0]
[null,null,null,null,null,null,null,null,null,null,null,null,null,null,null,"○",73,"中山間直払","担い手の確保",0,0]
[null,null,null,null,null,null,null,null,null,null,null,null,null,null,null,"○",74,"中山間直払","地場農産物の加工・販売",0,0]
[null,null,null,null,null,null,null,null,null,null,null,null,null,null,null,"○",75,"中山間直払","その他（土地改良事業、災害復旧、地目変更等）",0,0]
[null,null,null,null,null,null,null,null,null,null,null,null,null,null,null,"○",76,"中山間直払","水路管理活動（草刈り、泥上げ等）",0,0]
[null,null,null,null,null,null,null,null,null,null,null,null,null,null,null,"○",77,"中山間直払","農道管理活動（草刈り等）",0,0]
[null,null,null,null,null,null,null,null,null,null,null,null,null,null,null,"○",78,"中山間直払","農用地管理作業（草刈り、耕耘等）",0,0]
[null,null,null,null,null,null,null,null,null,null,null,null,null,null,null,"○",79,"中山間直払","【必須】多面的機能を増進する活動（周辺林地の下草刈）",0,0]
[null,null,null,null,null,null,null,null,null,null,null,null,null,null,null,"○",80,"中山間直払","【必須】多面的機能を増進する活動（土壌流亡に配慮した営農）",0,0]
[null,null,null,null,null,null,null,null,null,null,null,null,null,null,null,"○",81,"中山間直払","【必須】多面的機能を増進する活動（棚田オーナー制度）",0,0]
[null,null,null,null,null,null,null,null,null,null,null,null,null,null,null,"○",82,"中山間直払","【必須】多面的機能を増進する活動（市民農園等の開設・運営）",0,0]
[null,null,null,null,null,null,null,null,null,null,null,null,null,null,null,"○",83,"中山間直払","【必須】多面的機能を増進する活動（体験民宿（グリーン・ツーリズム）",0,0]
[null,null,null,null,null,null,null,null,null,null,null,null,null,null,null,"○",84,"中山間直払","【必須】多面的機能を増進する活動（景観作物の作付け）",0,0]
[null,null,null,null,null,null,null,null,null,null,null,null,null,null,null,"○",85,"中山間直払","【必須】多面的機能を増進する活動（魚類・昆虫類の保護）",0,0]
[null,null,null,null,null,null,null,null,null,null,null,null,null,null,null,"○",86,"中山間直払","【必須】多面的機能を増進する活動（鳥類の餌場の確保）",0,0]
[null,null,null,null,null,null,null,null,null,null,null,null,null,null,null,"○",87,"中山間直払","【必須】多面的機能を増進する活動（粗放的畜産）",0,0]
[null,null,null,null,null,null,null,null,null,null,null,null,null,null,null,"○",88,"中山間直払","【必須】多面的機能を増進する活動（堆肥、拮抗作物、合鴨、輪作、緑肥作物等）",0,0]
[null,null,null,null,null,null,null,null,null,null,null,null,null,null,null,"○",89,"中山間直払","【必須】多面的機能を増進する活動（その他活動）",0,0]
[null,null,null,null,null,null,null,null,null,null,null,null,null,null,null,"○",90,"中山間直払","【必須(体制整備単価)】ネットワーク化活動計画の話合い",0,0]
[null,null,null,null,null,null,null,null,null,null,null,null,null,null,null,"○",91,"中山間直払","総会",0,0]
[null,null,null,null,null,null,null,null,null,null,null,null,null,null,null,"○",92,"中山間直払","役員会",0,0]
[null,null,null,null,null,null,null,null,null,null,null,null,null,null,null,"○",93,"中山間直払","現地確認立会い",0,0]
[null,null,null,null,null,null,null,null,null,null,null,null,null,null,null,"○",94,"中山間直払","市役所打合せ",0,0]
[null,null,null,null,null,null,null,null,null,null,null,null,null,null,null,"○",95,"中山間直払","研修",0,0]
[null,null,null,null,null,null,null,null,null,null,null,null,null,null,null,"○",96,"中山間直払","その他",0,0]
[null,null,null,null,null,null,null,null,null,null,null,null,null,null,null,"○",97,"中山間直払","※適宜【選択肢】シートに項目を追加ください",0,0]
[null,null,null,null,null,null,null,null,null,null,null,null,null,null,null,"○",98,"中山間直払","※適宜【選択肢】シートに項目を追加ください",0,0]
[null,null,null,null,null,null,null,null,null,null,null,null,null,null,null,"○",99,"中山間直払","※適宜【選択肢】シートに項目を追加ください",0,0]
[null,null,null,null,null,null,null,null,null,null,null,null,null,null,null,"○",100,"中山間直払","※適宜【選択肢】シートに項目を追加ください",0,0]
[null,null,null,null,null,null,null,null,null,null,null,null,null,null,null,"○",101,"中山間直払","※適宜【選択肢】シートに項目を追加ください",0,0]
[null,null,null,null,null,null,null,null,null,null,null,null,null,null,null,"○",102,"中山間直払","※適宜【選択肢】シートに項目を追加ください",0,0]
[null,null,null,null,null,null,null,null,null,null,null,null,null,null,null,"○",103,"中山間直払","※適宜【選択肢】シートに項目を追加ください",0,0]
[null,null,null,null,null,null,null,null,null,null,null,null,null,null,null,"○",104,"中山間直払","※適宜【選択肢】シートに項目を追加ください",0,0]
[null,null,null,null,null,null,null,null,null,null,null,null,null,null,null,"○",105,"中山間直払","※適宜【選択肢】シートに項目を追加ください",0,0]
[null,null,null,null,null,null,null,null,null,null,null,null,null,null,null,"○",106,"中山間直払","※適宜【選択肢】シートに項目を追加ください",0,0]
[null,null,null,null,null,null,null,null,null,null,null,null,null,null,null,"○",107,"中山間直払","※適宜【選択肢】シートに項目を追加ください",0,0]
[null,null,null,null,null,null,null,null,null,null,null,null,null,null,null,"○",108,"中山間直払","※適宜【選択肢】シートに項目を追加ください",0,0]
[null,null,null,null,null,null,null,null,null,null,null,null,null,null,null,"○",0,0,0,0,0]
[null,null,null,null,null,null,null,null,null,null,null,null,null,null,null,"○",0,0,0,0,0]